Cogmind - Beta 13 @@@ ROGUE MODE // 2024.06.23 @ 20:20:24 Player: Cracklepappy Result: Assimilated 0b10! Performance ------------- Evolutions (9) 4500 Regions Visited (35) 7000 Robots Destroyed (563) 2815 Value Destroyed (25324) 25324 Prototype IDs (65) 1300 Alien Tech Used (12) 2400 Bonus (20814) 20814 TOTAL SCORE: 64153 Bonus ------- High Alert Combat Kills 2958 Follower Combat Kills 2921 Entered Garrisons 1400 Used RIF Installer 4000 Network Hubs Disabled 200 Aligned with FarCom 300 Met R17 at Research 2000 Scanned by Researcher 500 Met MAIN.C 5000 Used 0b10 Conduit 2000 Win 3000 Friendly Fire -3465 Cogmind --------- Core Integrity 937/1600 Matter 251/300 Energy 397/400 System Corruption 12% Temperature Cool (9) Movement Flying (34) Location 0b10 Command Parts ------- > --- POWER (2) -------- Micro Antimatter Reactor > --- PROPULSION (5) --- Q-thruster Electron Diverter Impulse Thruster Array > --- UTILITY (13) ----- Experimental Optical Array Advanced Targeting Computer Advanced Targeting Computer Experimental Core Analyzer Improved Hacking Suite Relay Coupler [Grunt] (20) Relay Coupler [Sentry] (23) Relay Coupler [Hunter] (12) Relay Coupler [Proto] (10) > --- WEAPON (6) ------- (None) > --- INVENTORY (9) ---- Matter Drive Improved Remote Shield Spacefold Activator Null Cannon Advanced Remote Datajack Peak State ------------ > --- POWER ------------ Micro Antimatter Reactor Micro Antimatter Reactor > --- PROPULSION ------- Electron Diverter Improved Q-thruster Improved Q-thruster Experimental Q-thruster > --- UTILITY ---------- Advanced Gravity Neutralizer Experimental Optical Array Improved Targeting Computer Improved Targeting Computer Experimental Core Analyzer Improved Hacking Suite Relay Coupler [Grunt] Relay Coupler [Hunter] Relay Coupler [Heavy] Relay Coupler [Proto] Spacefold Activator > --- WEAPON ----------- Perforator Power Sword > --- INVENTORY -------- Matter Drive Core Regenerator Terrabomb Terrabomb Null Cannon Advanced Remote Datajack [Rating: 167] Favorites ----------- Power Light Ion Engine Engine Light Ion Engine Power Core Neutrino Core Reactor Antimatter Reactor Propulsion Armored Wheel Treads Light Treads Leg Centrium Leg Wheel Armored Wheel Flight Unit Experimental Q-thruster Utility Improved Cooling System Device Improved Cooling System Storage High-capacity Storage Unit Processor Improved Targeting Computer Hackware Improved Hacking Suite Protection Core Shielding Artifact Spacefold Activator Weapon Autogun Energy Gun Heavy Laser Energy Cannon Heavy Plasma Cannon Ballistic Gun Autogun Ballistic Cannon Hardcell Cannon Launcher Rocket Launcher Special Weapon Advanced Remote Datajack Impact Weapon Maul Slashing Weapon Power Sword Special Melee Weapon Advanced Datajack Build | -11 -10 -10 -10 -9 -8 -8 -8 -8 -7 -7 -7 -7 -6 -6 -6 -6 -5 -5 -5 -5 -4 -4 -4 -4 -4 -4 -4 -3 -3 -3 -2 -2 -2 -1 -1 ------- Run | Yrd Mat Min Exi Min Mat Gar Mat Gar Fac Was Fac Gar Fac Was Fac Gar Fac Gar Fac Gar Fac Was Fac Ext Cet Arc Hub Res Qua Gar Res Tes Sec Acc Com Slots Evolved 18 | . . . . . 4 . . . 2 . . . 2 . . . 2 . . . 2 . . . . . . 2 . . 2 . . 2 . Power 1 | . . . . . . . . . . . . . . . . . 1 . . . . . . . . . . . . . . . . . . Propulsion 2 | . . . . . . . . . . . . . . . . . . . . . . . . . . . . . . . 2 . . . . Utility 11 | . . . . . 2 . . . 1 . . . 2 . . . . . . . 2 . . . . . . 2 . . . . . 2 . Weapon 4 | . . . . . 2 . . . 1 . . . . . . . 1 . . . . . . . . . . . . . . . . . . Parts Attached 798 | 7 20 . 1 9 38 11 2 6 14 9 11 18 57 9 20 42 22 24 35 48 10 17 4 35 16 13 12 55 24 57 77 26 27 15 7 Power 95 | 1 2 . . . 6 1 2 . 2 1 . 1 3 . 3 2 4 3 3 5 1 1 1 6 3 3 1 6 5 5 10 5 4 2 3 Engine 27 | 1 2 . . . 3 1 2 . 1 . . . 1 . 3 2 2 1 1 2 . . . . . . . 2 2 . . 1 . . . Core 20 | . . . . . 3 . . . 1 . . 1 1 . . . 2 2 2 2 . . . 3 . . . . . 1 1 1 . . . Reactor 48 | . . . . . . . . . . 1 . . 1 . . . . . . 1 1 1 1 3 3 3 1 4 3 4 9 3 4 2 3 Propulsion 80 | 2 4 . 1 1 11 . . . 1 . . 1 3 . 2 5 1 . . 5 2 1 . 1 . . 1 6 1 2 19 3 3 2 2 Treads 19 | 2 4 . . 1 2 . . . . . . 1 2 . 1 3 . . . 3 . . . . . . . . . . . . . . . Leg 24 | . . . . . . . . . . . . . . . . . . . . 2 . . . . . . . 4 1 2 15 . . . . Wheel 19 | . . . 1 . 5 . . . 1 . . . 1 . 1 2 1 . . . 2 1 . 1 . . 1 1 . . . 1 . . . Hover . | . . . . . . . . . . . . . . . . . . . . . . . . . . . . . . . . . . . . Flight 18 | . . . . . 4 . . . . . . . . . . . . . . . . . . . . . . 1 . . 4 2 3 2 2 Utility 244 | 2 5 . . 1 5 3 . 2 4 3 5 6 27 2 5 10 7 7 16 15 4 3 . 7 3 5 6 26 9 9 15 9 12 9 2 Device 153 | 1 1 . . . 3 2 . . 1 2 4 3 20 1 4 8 6 5 13 10 3 3 . 7 1 3 4 18 5 1 9 6 5 4 . Storage 13 | 1 4 . . . . . . . . 1 . . . . . . . . . . 1 . . . . . . . 2 . 4 . . . . Processor 24 | . . . . 1 1 . . 1 2 . . . 4 . 1 . 1 . . 1 . . . . . . . 6 1 . . 1 2 . 2 Hackware 37 | . . . . . . . . . . . . . 3 1 . 1 . 2 3 4 . . . . . 2 1 2 . 8 2 2 3 3 . Protection 12 | . . . . . 1 1 . 1 1 . 1 3 . . . 1 . . . . . . . . 2 . 1 . . . . . . . . Artifact 5 | . . . . . . . . . . . . . . . . . . . . . . . . . . . . . 1 . . . 2 2 . Weapon 379 | 2 9 . . 7 16 7 . 4 7 5 6 10 24 7 10 25 10 14 16 23 3 12 3 21 10 5 4 17 9 41 33 9 8 2 . Energy Gun 60 | 1 . . . . 4 . . . . . . . 8 3 1 . 2 . 1 9 1 6 2 9 4 1 2 . 1 1 1 3 . . . Energy Cannon 28 | . . . . . . . . . . . . . 1 . 2 2 . 3 1 2 . . . . 2 . . 1 . 1 6 2 3 2 . Ballistic Gun 206 | 1 7 . . 4 11 4 . 3 5 5 6 10 10 1 5 23 7 8 13 9 1 . . 6 3 4 1 13 5 26 15 . . . . Ballistic Cannon 15 | . . . . . . . . . . . . . 1 1 1 . . . . . . . 1 . 1 . . 2 1 5 1 1 . . . Launcher 3 | . 1 . . 1 . . . . . . . . . . . . . . . . . . . . . . . . . 1 . . . . . Special Weapon 55 | . . . . . . . . . 1 . . . 4 2 1 . 1 3 1 3 1 6 . 6 . . 1 1 2 7 8 3 4 . . Impact Weapon 9 | . 1 . . 2 1 3 . 1 1 . . . . . . . . . . . . . . . . . . . . . . . . . . Slashing Weapon 2 | . . . . . . . . . . . . . . . . . . . . . . . . . . . . . . . 2 . . . . Piercing Weapon . | . . . . . . . . . . . . . . . . . . . . . . . . . . . . . . . . . . . . Special Melee Weapon 1 | . . . . . . . . . . . . . . . . . . . . . . . . . . . . . . . . . 1 . . Unidentified Prototypes 44 | . . . . . 6 . . . . . . 1 2 . 2 1 . . . . . . . . 3 . . 7 5 . 1 8 5 2 1 Corrupted Parts 10 | . . . . . . . . . . . . . . . . 1 . . . . . . . 1 5 . . 1 . 1 1 . . . . System Corruption 52 | . . . . . . . . . . . . . . . . 2 . . . . . . . 3 40 . . 1 . 4 2 . . . . Parts Lost 165 | . 4 . . . 7 2 . 2 . 7 1 2 9 2 6 14 1 7 1 14 1 . . 1 5 . 13 . 3 14 29 2 6 4 8 Power 28 | . 1 . . . 2 . . . . . . . 2 . 2 1 1 2 . 2 1 . . . 1 . 2 . 1 3 4 . 2 . 1 Propulsion 28 | . . . . . 2 . . . . . . . 1 . 2 4 . . . 1 . . . . . . 3 . . 1 7 1 1 3 2 Utility 33 | . 1 . . . 1 2 . 1 . 3 . 1 2 . . 3 . 1 . . . . . 1 1 . 2 . 1 1 6 1 . 1 4 Weapon 76 | . 2 . . . 2 . . 1 . 4 1 1 4 2 2 6 . 4 1 11 . . . . 3 . 6 . 1 9 12 . 3 . 1 Highest Loss Streak 13 | . 2 . . . 5 1 . 1 . 7 1 2 2 2 5 7 1 2 1 6 1 . . 1 4 . 11 . 2 7 13 1 4 3 7 To Critical Strikes 3 | . . . . . 1 . . . . . . 1 . . . . . . . . . . . . . . . . . . . . . 1 . Average Slot Usage (%) 94 | . 99 100 100 100 99 99 100 99 99 62 85 90 92 92 92 96 96 93 93 94 96 100 99 99 98 98 98 82 98 93 94 69 82 77 58 Engine 4 | . 13 14 14 14 5 8 9 9 4 1 . . . . 2 5 6 5 4 1 5 4 . . . . . 2 2 . . 2 . . . Core 1 | . . . . . 3 . . . 2 . . 4 1 6 2 . 3 4 5 6 3 . . 3 . . . . . . . 1 2 . . Reactor 2 | . . . . . . . . . . 4 7 2 4 . . . . . . 1 1 5 10 6 9 10 10 3 5 3 6 2 4 7 4 Treads 5 | . 27 28 17 14 . . . . . . . 4 6 6 5 8 4 . . 5 6 . . . . . . . . . . . . . . Leg 1 | . . . . . . . . . . . . . . . . . . . . . . . . . . . . . 9 8 15 . . . . Wheel 5 | . . . 10 14 17 18 18 18 14 7 7 2 . . . 3 2 5 5 2 3 10 10 10 10 10 9 . . . . 2 . . . Device 14 | . 13 14 14 12 8 11 18 10 7 10 15 15 18 7 19 13 16 13 12 15 18 21 21 24 26 22 18 23 20 8 6 9 7 5 1 Storage 6 | . 14 14 14 14 9 9 9 9 7 6 7 7 6 6 6 6 5 5 5 5 5 5 5 5 5 5 5 . 1 4 4 . . . . Processor 10 | . . . . 1 9 9 9 8 14 9 7 7 15 20 20 13 12 17 15 11 10 10 10 10 10 10 10 10 19 17 13 14 16 11 12 Hackware 5 | . . . . . . . . . . . . . 2 11 . 4 3 3 5 6 10 10 10 5 . 2 7 13 9 19 21 14 20 26 22 Protection 2 | . . . . . 8 6 . 7 7 1 7 6 2 . . 5 . . . . . . . . 4 5 4 . . . . . . . . Energy Gun 2 | . 1 . . . 5 . . . . . . . 4 12 8 . . . 1 8 19 14 15 11 14 14 8 . . . . 1 1 . . Ballistic Gun 24 | . 25 28 28 24 30 34 36 35 37 18 31 37 27 12 15 31 34 31 32 22 5 10 10 17 7 16 21 16 25 19 19 . . . . Naked Turns . | . . . . . . . . . . . . . . . . . . . . . . . . . . . . . . . . . . . . Heaviest Build 124 | 12 88 87 87 88 102 104 102 107 115 113 87 86 87 76 84 77 83 95 87 96 97 85 89 94 118 105 104 71 75 78 124 44 46 37 33 Greatest Support 132 | 40 40 40 40 12 24 24 24 24 28 28 28 70 75 75 75 40 40 28 28 46 46 32 32 32 32 32 32 72 72 72 132 44 48 56 54 Greatest Overweight (x) 22 | . 4 2 7 7 7 4 4 4 4 4 3 3 4 1 22 15 2 3 3 4 3 2 2 2 3 3 7 6 1 2 1 . 1 . 1 Average Overweight (x) 1 | . 1 2 6 7 3 4 4 4 4 2 2 1 . . 1 2 1 2 2 2 1 2 2 2 2 2 2 1 . . . . . . . Largest Inventory Capacity 25 | 8 25 25 25 25 25 25 25 25 25 25 20 20 20 20 20 20 20 20 20 20 20 15 15 15 15 15 15 15 10 10 20 5 9 9 9 Average Capacity 18 | 7 22 25 25 25 25 25 25 25 25 19 20 20 20 20 20 20 20 20 20 20 17 15 15 15 15 15 15 7 7 10 16 5 5 9 9 Most Carried 25 | 8 25 25 25 25 25 25 25 25 25 25 20 20 20 20 20 20 20 20 20 20 20 15 15 15 15 15 15 15 10 10 20 5 9 9 9 Average Carried 18 | 5 20 25 23 24 24 24 25 24 24 15 18 19 19 18 19 19 19 19 19 19 16 15 15 14 14 14 14 6 6 9 15 4 5 8 7 Final Capacity 25 | 8 25 25 25 25 25 25 25 25 25 20 20 20 20 20 20 20 20 20 20 20 15 15 15 15 15 15 15 5 10 10 5 5 9 9 9 Final Carried 25 | 8 25 25 25 24 25 25 25 24 25 18 20 20 20 19 20 20 20 20 20 20 15 15 15 15 15 15 14 5 10 10 5 5 7 9 6 Class Distribution -------------------- 16% | Mutant 14% | Scavenger-Executioner 11% | Bothacker-Executioner 11% | Skirmisher 8% | Scavenger-Tank 8% | Gunner 8% | Botlord-Executioner 7% | Bothacker-Gunner 3% | Scavenger-Gunner Dominant Class ---------------- Mutant | -10/Materials Mutant | -10/Mines Mutant | -10/Exiles Mutant | -9/Mines Skirmisher | -8/Materials Skirmisher | -8/Garrison Skirmisher | -8/Materials Skirmisher | -8/Garrison Gunner | -7/Factory Scavenger-Skirmisher | -7/Waste Scavenger-Tank | -7/Factory Scavenger-Tank | -7/Garrison Bothacker-Gunner | -6/Factory Gunner | -6/Waste Gunner | -6/Factory Bothacker-Gunner | -6/Garrison Bothacker-Executioner | -5/Factory Bothacker-Executioner | -5/Garrison Scavenger-Executioner | -5/Factory Bothacker-Executioner | -5/Garrison Botlord-Executioner | -4/Factory Bothacker-Executioner | -4/Waste Bothacker-Executioner | -4/Factory Commander-Executioner | -4/Extension Scavenger-Executioner | -4/Cetus Scavenger-Executioner | -4/Archives Scavenger-Executioner | -4/Hub_04(d) Scavenger-Executioner | -3/Research Scavenger-Executioner | -3/Quarantine Botlord-Executioner | -3/Garrison Botlord-Executioner | -2/Research Hacker-Sprinter | -2/Testing Bothacker-Sprinter | -2/Section 7 Botlord-Sprinter | -1/Access Bothacker-Mutant | -1/Command Resources | -11 -10 -10 -10 -9 -8 -8 -8 -8 -7 -7 -7 -7 -6 -6 -6 -6 -5 -5 -5 -5 -4 -4 -4 -4 -4 -4 -4 -3 -3 -3 -2 -2 -2 -1 -1 ----------- Run | Yrd Mat Min Exi Min Mat Gar Mat Gar Fac Was Fac Gar Fac Was Fac Gar Fac Gar Fac Gar Fac Was Fac Ext Cet Arc Hub Res Qua Gar Res Tes Sec Acc Com Matter Collected 28493 | 286 364 . 166 189 975 783 148 528 1039 1037 165 1852 2470 592 1297 1891 1257 1104 1043 1417 70 451 31 1128 301 548 407 1006 792 1659 2335 59 695 342 66 Remotely 2749 | . . . . . . . . . . . 93 210 278 . . 512 380 287 311 548 . . . 130 . . . . . . . . . . . Salvage Created 32114 | 181 547 . . 186 1477 801 177 758 1422 1562 165 1738 2232 1329 2012 1470 1069 1143 1039 1455 . 1411 31 1967 336 688 578 563 1140 998 2387 152 698 402 . Parts 1471 | 16 44 . . 7 87 52 11 38 73 29 15 93 112 19 85 85 47 47 49 57 . 15 3 83 17 42 33 20 66 50 115 8 38 15 . Haulers Intercepted 14 | . 1 . . . 5 . . . 1 . . 1 2 . 1 . 1 . . . . . . . . . . 1 . . 1 . . . . Recyclers Shooed 18 | . . . . . 2 . . . 1 . . . 3 . 5 . . . . . . . . 1 . . 1 . 1 . 4 . . . . Parts Field Recycled . | . . . . . . . . . . . . . . . . . . . . . . . . . . . . . . . . . . . . Retrieved Matter . | . . . . . . . . . . . . . . . . . . . . . . . . . . . . . . . . . . . . Parts Self-Destructed . | . . . . . . . . . . . . . . . . . . . . . . . . . . . . . . . . . . . . Prevented . | . . . . . . . . . . . . . . . . . . . . . . . . . . . . . . . . . . . . Kills | -11 -10 -10 -10 -9 -8 -8 -8 -8 -7 -7 -7 -7 -6 -6 -6 -6 -5 -5 -5 -5 -4 -4 -4 -4 -4 -4 -4 -3 -3 -3 -2 -2 -2 -1 -1 ------- Run | Yrd Mat Min Exi Min Mat Gar Mat Gar Fac Was Fac Gar Fac Was Fac Gar Fac Gar Fac Gar Fac Was Fac Ext Cet Arc Hub Res Qua Gar Res Tes Sec Acc Com Combat Hostiles Destroyed 429 | . 13 . . 2 22 20 1 15 21 6 3 32 36 5 24 31 18 23 11 29 . 5 . 28 5 4 9 6 9 20 23 . 7 1 . Melee 1 | . . . . . . . . . . . . . . . . . . . . . . . . . . . . . . . . . 1 . . Guns 387 | . 11 . . 1 22 20 1 15 21 6 3 32 36 3 17 29 18 20 11 29 . 4 . 28 4 4 9 6 9 14 14 . . . . Cannons 35 | . . . . . . . . . . . . . . 2 6 2 . 2 . . . 1 . . 1 . . . . 6 8 . 6 1 . AOE 2 | . 2 . . . . . . . . . . . . . . . . . . . . . . . . . . . . . . . . . . Classes Destroyed 26 | 2 6 . . 1 2 2 . 2 . 1 1 . . . . 1 . . 1 . . . . 2 . . . 2 1 . 1 . 1 . . Worker 24 | . 1 . . 1 2 . . . 1 . . . 3 . 3 . . . 1 . . . . . . . 4 1 2 . 3 1 1 . . Builder 15 | . . . . . 2 . . . . . . . 1 . 4 . . . 1 . . . . 1 . . 1 1 1 . 3 . . . . Tunneler 11 | 6 . . . . . . . . 1 . 2 . 1 . . . . . 1 . . . . . . . . . . . . . . . . Hauler 14 | . 1 . . . 5 . . . 1 . . 1 2 . 1 . 1 . . . . . . . . . . 1 . . 1 . . . . Recycler 25 | 1 . . . . 2 . 1 . 3 . . . 1 . 4 . 1 . . . . . . 1 . . . . 3 . 3 1 2 2 . Mechanic 2 | . . . . . . . . . . . . . . . . . . . 1 . . . . . . . . . 1 . . . . . . Operator 12 | . 1 . . . . . . . . . . . 1 . . . . . . . . . . . . 9 . . . . . . . 1 . Watcher 24 | . 2 . . . 3 . 1 . 2 . 1 1 4 . 1 . 1 . 3 . . . 1 . . . 1 . 1 . . 1 1 . . Swarmer 84 | . 3 . . . 3 4 . . . . . 15 3 . 1 4 8 4 . 9 . . . 8 . . 4 . . 11 2 . 5 . . Cutter 10 | . . . . . . 2 . . . . . . . . . 4 . 4 . . . . . . . . . . . . . . . . . Saboteur 2 | . . . . . . . . . . . . . . . . 1 . 1 . . . . . . . . . . . . . . . . . Grunt 174 | . 10 . . . 13 6 . 10 16 . . 7 16 . 16 15 10 11 6 17 . . . 5 . . 2 . 5 2 7 . . . . Brawler 10 | . . . . . . . . 2 . . . 4 1 . . 1 . 1 1 . . . . . . . . . . . . . . . . Duelist 8 | . . . . . 2 . . . 1 . . . . . 1 1 . . 1 . . . . . . . 1 . . . 1 . . . . Protector 1 | . . . . . . . . . . . . . . . . . . . . . . . . 1 . . . . . . . . . . . Researcher 1 | . . . . . . . . . . . . . . . . . . . . . . . . . . . . . . . . . 1 . . Sentry 52 | . . . . 2 4 5 1 . 1 . . 4 4 . 3 3 . 2 3 2 . . . 8 . 4 1 . . 2 3 . . . . Demolisher 1 | . . . . . . . . . . . . . . . . . . . . . . . . 1 . . . . . . . . . . . Specialist 8 | . . . . . . . . . . . 2 1 . . . 2 . . . . . . . 1 . . . . . . 2 . . . . Hunter 19 | . . . . . . 3 . 1 . . . . 4 . 3 . . . . . . . . 2 . . 1 2 . 1 2 . . . . Programmer 33 | . . . . . . . . 2 3 . 1 1 8 . . . . . . 1 . . . . . . . 1 3 4 6 . 2 1 . Behemoth 1 | . . . . . . . . . . . . . . . . . . . . . . . . . . . . . . . 1 . . . . Compactor 16 | . . . . . . . . . . 6 . . . 5 . . . . . . . 5 . . . . . . . . . . . . . Cetus Guard 5 | . . . . . . . . . . . . . . . . . . . . . . . . . 5 . . . . . . . . . . Striker 2 | . . . . . . . . . . . . . . . . . . . . . . . . . . . . 2 . . . . . . . Executioner 1 | . . . . . . . . . . . . . . . . . . . . . . . . . . . . 1 . . . . . . . Alpha 7 1 | . . . . . . . . . . . . . . . . . . . . . . . . . . . . . 1 . . . . . . Thug 1 | . . . . . . . . . . . . . . . . . . . . . . . . 1 . . . . . . . . . . . Butcher 1 | . . . . . . . . . . . . . . . . . . . . . . . . 1 . . . . . . . . . . . Guerrilla 1 | . . . . . . . . . . . . . . . . . . . . . . . . 1 . . . . . . . . . . . Infiltrator 2 | . . . . . . . . . . . . . . . . . . . . . . . . . . . . . . . 2 . . . . Best Kill Streak 10 | 2 4 . . 2 8 5 1 4 7 3 3 10 5 3 10 8 5 5 5 7 . 3 1 4 3 4 5 3 5 5 5 2 4 3 . Combat Bots Only 10 | . 4 . . 2 6 5 1 4 4 3 2 10 3 3 5 8 5 5 3 7 . 3 . 4 3 3 5 3 4 5 4 . 4 1 . Max Kills in Single Turn 3 | 1 2 . . 1 2 1 1 1 1 1 1 2 2 2 2 1 2 2 2 2 . 1 1 3 1 1 3 2 1 1 2 1 2 1 . Gunslinging 2 | . . . . . 1 . . . . . . 1 1 . . . . . . 1 . . . 1 . . 2 1 . . 1 . . . . Exploded 2 | . 2 . . . . . . . . . . . . . . . . . . . . . . . . . . . . . . . . . . Melee 1 | . . . . . . . . . . . . . . . . . . . . . . . . . . . . . . . . . 1 . . Uniques/NPCs Destroyed 2 | . . . . 1 . . . . . . . . . . . . . . . . . . . 1 . . . . . . . . . . . YI-UF0 (-9/Mines) A7 (-4/Extension) Combat | -11 -10 -10 -10 -9 -8 -8 -8 -8 -7 -7 -7 -7 -6 -6 -6 -6 -5 -5 -5 -5 -4 -4 -4 -4 -4 -4 -4 -3 -3 -3 -2 -2 -2 -1 -1 -------- Run | Yrd Mat Min Exi Min Mat Gar Mat Gar Fac Was Fac Gar Fac Was Fac Gar Fac Gar Fac Gar Fac Was Fac Ext Cet Arc Hub Res Qua Gar Res Tes Sec Acc Com Hostile Shots Fired 2509 | . 115 . . 4 107 68 6 35 50 9 34 154 255 2 140 257 58 66 50 135 2 . . 62 75 18 105 37 76 150 247 9 110 32 41 Missed 799 | . 32 . . 3 26 23 3 13 19 . 15 48 74 . 46 75 26 14 10 34 1 . . 20 23 5 27 15 27 57 71 2 55 15 20 Damage Taken 33652 | . 913 . . 14 1210 692 43 335 463 458 237 1320 2427 69 1445 2458 541 1178 903 2077 73 . . 1147 1509 345 1690 575 950 2034 5015 204 1808 533 986 Core 5279 | . 180 . . . 130 134 13 . 69 140 28 158 229 . 150 302 35 98 171 173 . . . 129 203 . 216 169 91 215 754 27 802 235 428 Absorbed by Shields 48 | . . . . . . . . . . . . . 4 . . . . . . . . . . 44 . . . . . . . . . . . Reduced by Siege Mode 170 | . . . . . . . . . . . . 33 100 . 37 . . . . . . . . . . . . . . . . . . . . Redirected to Shielding 51 | . . . . . 25 8 . . . . . . . . . 18 . . . . . . . . . . . . . . . . . . . Regen/Repaired (Parts) 412 | . 233 . . . . . . . 147 . . . . . . . . . . . . . . . . . . 32 . . . . . . . Core Remaining (%) 47 | 100 . . . 28 . . . 49 . . . 43 . . . 19 . . . 52 . . . . . . 52 . . 63 . . 15 . 58 Volleys Fired 1389 | 16 77 . . 31 80 43 8 31 56 34 12 68 106 22 58 83 37 47 40 66 6 26 5 43 24 30 26 27 22 80 143 2 12 24 4 Largest 6 | 2 2 . . 2 4 4 4 4 5 5 5 5 5 5 5 5 6 6 6 6 1 6 6 6 6 6 6 6 6 6 6 1 1 1 1 Hottest 375 | 70 70 . . 40 208 100 100 100 125 125 134 142 241 257 293 159 195 222 211 320 90 356 356 329 358 375 300 218 239 306 321 40 130 120 120 Shots Fired 5148 | 32 153 . . 59 314 163 32 119 268 75 55 284 446 89 238 302 217 235 188 296 6 119 24 243 69 135 105 96 121 231 388 2 14 26 4 Gun 4676 | 32 152 . . 56 314 163 32 119 266 75 55 284 426 67 185 293 216 214 178 286 . 93 19 238 48 135 100 86 117 173 252 2 . . . Cannon 337 | . . . . . . . . . . . . . 5 18 53 9 . 19 2 5 1 19 5 5 21 . . 10 4 43 74 . 14 26 4 Launcher 4 | . 1 . . 3 . . . . . . . . . . . . . . . . . . . . . . . . . . . . . . . Special 131 | . . . . . . . . . 2 . . . 15 4 . . 1 2 8 5 5 7 . . . . 5 . . 15 62 . . . . Kinetic 4258 | 16 134 . . 56 292 163 32 119 266 75 55 284 358 53 168 296 213 214 172 235 . 37 13 151 25 79 72 91 121 211 248 . 9 . . Thermal 774 | 16 18 . . . 22 . . . . . . . 73 32 70 . 3 19 8 56 1 75 11 92 28 56 28 5 . 12 114 . 5 26 4 Explosive 4 | . 1 . . 3 . . . . . . . . . . . . . . . . . . . . . . . . . . . . . . . Electromagnetic 29 | . . . . . . . . . . . . . . . . 6 . . . . . . . . 16 . . . . . 5 2 . . . Robot Hit Streak 40 | 8 10 . . 9 18 15 8 7 15 40 14 21 19 22 17 16 16 32 10 8 5 18 2 12 10 9 15 5 15 24 21 7 6 9 . Robot Miss Streak 11 | 2 3 . . 5 5 3 5 2 7 2 6 8 11 4 5 6 6 5 7 4 . 2 4 4 6 5 7 7 7 6 5 1 6 3 . Penetration Max 2 | . . . . . . . . . . . . . 1 . 1 . . 1 1 1 . . . 1 1 1 2 1 1 . 1 . 1 . . Secondary Targets 80 | . 3 . . . 4 4 . 3 3 . . 7 8 . . 9 5 3 1 11 . . . 10 2 . 3 1 1 1 1 . . . . Max Gunslinging Chain 2 | . 1 . . . 1 1 . 1 1 . . 1 1 . . 1 1 1 1 2 . . . 1 1 . 2 1 1 1 1 . . . . Shots Hit Robots 3054 | 19 106 . . 37 203 105 19 70 149 68 31 166 290 62 152 174 106 129 109 163 4 89 8 139 45 72 68 45 70 113 214 5 14 10 . Core Hits 1507 | 11 44 1 . 11 89 40 6 34 61 25 15 92 140 19 115 125 52 56 51 72 . 20 2 89 18 33 40 22 40 53 94 3 28 6 . Critical Kills 33 | . 2 . . . 3 . . . . . . 3 3 1 1 . 1 1 1 . . . . 1 . 2 2 1 1 1 1 . 8 . . Critical Parts Destroyed 42 | . . . . . 1 . . . 1 . 1 2 6 . 1 . 1 1 1 3 . . 1 2 . 2 3 4 4 1 2 . 5 . . Critical Strikes 97 | 3 3 . . . 8 . . . 1 . 1 5 9 2 6 1 2 2 3 4 . 3 1 3 . 4 5 5 6 3 4 . 13 . . Burn 16 | 3 1 . . . 4 . . . . . . . . 1 4 . . . . 1 . 2 . . . . . . . . . . . . . Meltdown 3 | . . . . . . . . . . . . . . . . . . 1 . . . . . . . . . . . . 1 . 1 . . Destroy 75 | . 2 . . . 4 . . . 1 . 1 5 9 1 2 . 2 1 3 3 . 1 1 3 . 4 5 5 6 2 2 . 12 . . Blast 1 | . . . . . . . . . . . . . . . . . . . . . . . . . . . . . . 1 . . . . . Corrupt 1 | . . . . . . . . . . . . . . . . 1 . . . . . . . . . . . . . . . . . . . Sever 1 | . . . . . . . . . . . . . . . . . . . . . . . . . . . . . . . 1 . . . . Melee Attacks 53 | . 3 . . 5 1 4 . 3 1 . . . . . . . . . . . . . . . . . . . . . 1 16 19 . . Impact 17 | . 3 . . 5 1 4 . 3 1 . . . . . . . . . . . . . . . . . . . . . . . . . . Slashing 36 | . . . . . . . . . . . . . . . . . . . . . . . . . . . . . . . 1 16 19 . . Piercing . | . . . . . . . . . . . . . . . . . . . . . . . . . . . . . . . . . . . . Sneak Attacks 6 | . . . . . . . . . . . . . . . . . . . . . . . . . . . . . . . . 3 3 . . Combat Hostiles . | . . . . . . . . . . . . . . . . . . . . . . . . . . . . . . . . . . . . Follow-up Attacks . | . . . . . . . . . . . . . . . . . . . . . . . . . . . . . . . . . . . . Damage Inflicted 67460 | 246 981 8 . 300 2572 1619 333 1221 2666 2988 611 3123 6670 1567 3461 3825 1747 2396 2255 3154 . 1974 182 4692 1505 2051 1972 1281 2222 2739 5859 335 470 435 . Guns 59690 | 246 874 . . 300 2572 1619 333 1221 2666 2988 611 3123 6412 1199 2750 3687 1747 2077 2255 3122 . 1463 110 4612 1033 2051 1865 1191 2214 2123 3224 2 . . . Cannons 5742 | . . . . . . . . . . . . . 29 368 697 138 . 319 . 32 . 511 72 80 472 . . 90 . 508 1836 . 155 435 . Explosions 700 | . 99 . . . . . . . . . . . 224 . . . . . . . . . . . . . 90 . . . 287 . . . . Melee 648 | . . . . . . . . . . . . . . . . . . . . . . . . . . . . . . . . 333 315 . . Ramming 60 | . 8 8 . . . . . . . . . . 5 . 14 . . . . . . . . . . . 17 . 8 . . . . . . Kinetic 51832 | 82 738 . . 300 2212 1619 333 1221 2666 2988 611 3123 5127 973 2197 3724 1703 2077 2199 2662 . 461 70 2580 506 1109 1193 1191 2214 2631 3197 . 125 . . Thermal 13540 | 164 136 . . . 360 . . . . . . . 1314 594 1250 . 44 319 56 492 . 1513 112 2112 636 942 672 90 . 108 2161 . 30 435 . Explosive 610 | . 99 . . . . . . . . . . . 224 . . . . . . . . . . . . . . . . . 287 . . . . Electromagnetic 770 | . . . . . . . . . . . . . . . . 101 . . . . . . . . 363 . 90 . . . 214 2 . . . Impact . | . . . . . . . . . . . . . . . . . . . . . . . . . . . . . . . . . . . . Slashing 648 | . . . . . . . . . . . . . . . . . . . . . . . . . . . . . . . . 333 315 . . Piercing . | . . . . . . . . . . . . . . . . . . . . . . . . . . . . . . . . . . . . Highest Corruption 61 | . . . . . . . . 1 1 21 21 21 4 30 33 37 1 1 1 1 . 18 18 21 61 61 50 1 3 10 16 16 19 2 12 Average Corruption 13 | . . . . . . . . 1 1 14 21 21 2 16 31 35 1 1 1 1 . 13 18 19 48 54 48 1 2 7 3 16 16 1 7 Corruption Purged 13 | . . . . . . . . . . . . . . . . . . . . . . . . . . 13 . . . . . . . . . Corruption Blocked . | . . . . . . . . . . . . . . . . . . . . . . . . . . . . . . . . . . . . Effects 772 | . . . . . . . . 1 4 11 17 100 41 10 68 115 . 8 4 11 . 9 15 73 33 34 27 6 14 54 48 26 32 6 5 Message Errors 153 | . . . . . . . . . 1 2 1 21 10 2 16 18 . 2 . 5 . 1 5 20 8 4 5 2 6 9 5 2 6 . 2 Matter Fused 158 | . . . . . . . . . 1 1 4 22 7 3 11 29 . 1 1 3 . 2 3 13 3 9 2 1 2 22 9 2 4 3 . Heat Flow Errors 78 | . . . . . . . . 1 2 1 1 12 8 1 2 12 . . 1 . . 1 2 5 3 2 2 2 2 4 9 2 2 . 1 Energy Discharges 73 | . . . . . . . . . . 2 2 9 3 . 6 15 . 1 1 2 . 1 . 7 2 4 . . 1 4 5 3 5 . . Parts Rejected 14 | . . . . . . . . . . . 1 1 . . 1 . . . . . . 1 . 2 . . 2 . . 1 2 1 2 . . Parts Fused 9 | . . . . . . . . . . . . 1 . . . 1 . . . . . . . 3 1 1 . . 1 . 1 . . . . Data Loss (minor) 85 | . . . . . . . . . . 2 6 17 8 1 5 13 . 1 . 1 . . 1 9 . 3 1 . . 4 4 4 3 1 1 Data Loss (major) 32 | . . . . . . . . . . 1 . 2 1 . 5 3 . 1 . . . . . 3 . . 2 . 1 5 4 2 2 . . Misfires 32 | . . . . . . . . . . . . 1 2 2 4 2 . . . . . . 2 5 . . 3 1 . 2 3 1 2 2 . Alerts 16 | . . . . . . . . . . . . 2 1 1 1 1 . 1 . . . 1 2 . . 1 2 . 1 1 . . 1 . . Misdirections 23 | . . . . . . . . . . . 1 1 . . 2 . . . . . . . . . 2 . 2 . . . 1 8 5 . 1 Weapon Failures 99 | . . . . . . . . . . 2 1 11 1 . 15 21 . 1 1 . . 2 . 6 14 10 6 . . 2 5 1 . . . Overload Shots . | . . . . . . . . . . . . . . . . . . . . . . . . . . . . . . . . . . . . Overflow Damage 314 | . . . . . . . . . . . . . 21 . 2 . . 8 . . . . . . . . 39 4 . 20 121 99 . . . Projectiles 78 | . . . . . . . . . . . . . . . 2 . . 8 . . . . . . . . . 4 . 20 44 . . . . Explosions 137 | . . . . . . . . . . . . . 21 . . . . . . . . . . . . . 39 . . . 77 . . . . Melee 99 | . . . . . . . . . . . . . . . . . . . . . . . . . . . . . . . . 99 . . . Knockbacks 40 | . . . . . . . . . . . . . . . 17 2 . . . . . . 1 . . . . . . 6 . . 14 . . Impact . | . . . . . . . . . . . . . . . . . . . . . . . . . . . . . . . . . . . . Kinetic 36 | . . . . . . . . . . . . . . . 14 2 . . . . . . 1 . . . . . . 6 . . 13 . . Secondary 4 | . . . . . . . . . . . . . . . 3 . . . . . . . . . . . . . . . . . 1 . . Self-Inflicted Damage 221 | . . . . . . . . . . . . . . . . . . . . . . . . . . . 105 . . . 116 . . . . Shots 2 | . . . . . . . . . . . . . . . . . . . . . . . . . . . 1 . . . 1 . . . . Rammed 10 | . 2 2 . . . . . . . . . . 1 . 2 . . . . . . . . . . . 3 . . . . . . . . Targets Rammed 12 | . 2 2 . . . . . . . . . . 2 . 2 . . . . . . . . . . . 3 . 1 . . . . . . Kicked 1 | . . . . . . . . . . . . . . . . . . . . . . . . . . . . . 1 . . . . . . Crushed 1 | . . . . . . . . . . . . . 1 . . . . . . . . . . . . . . . . . . . . . . Highest Temperature 612 | 50 120 . . . 254 214 . 242 245 221 214 248 228 220 223 416 279 345 313 513 . 143 166 125 228 364 577 399 106 333 612 142 150 15 69 Average Temperature 82 | 21 40 . . . 34 77 . 66 66 91 124 81 62 49 57 96 70 94 95 107 . 42 37 24 125 128 179 99 100 94 105 63 53 7 25 Received Heat Transfer 6223 | . 441 . . 9 675 225 9 135 180 . . 165 540 . 396 849 120 306 243 685 . . . 243 144 27 210 . 66 96 324 27 45 9 54 Effects 26 | . . . . . 1 . . . . . . . 3 . . 2 . . . 3 . . . . . 4 8 1 . 1 3 . . . . Shutdowns 9 | . . . . . . . . . . . . . . . . 1 . . . 3 . . . . . . 3 1 . . 1 . . . . Energy Bleed 7 | . . . . . 1 . . . . . . . . . . 1 . . . . . . . . . 3 1 . . 1 . . . . . Interference 7 | . . . . . . . . . . . . . 3 . . . . . . . . . . . . . 2 . . . 2 . . . . Matter Decay 1 | . . . . . . . . . . . . . . . . . . . . . . . . . . . 1 . . . . . . . . Short Circuit 2 | . . . . . . . . . . . . . . . . . . . . . . . . . . 1 1 . . . . . . . . Siege Activations 18 | . . . . . . . . . . . . 1 13 . 4 . . . . . . . . . . . . . . . . . . . . Total Turns 175 | . . . . . . . . . . . . 20 116 . 39 . . . . . . . . . . . . . . . . . . . . Longest Duration 20 | . . . . . . . . . . . . 20 18 . 16 . . . . . . . . . . . . . . . . . . . . Robots Corrupted 1 | . . . . . . . . . . . . . . . . . . . . . . . . . . . . . . . 1 . . . . Combat Hostiles 1 | . . . . . . . . . . . . . . . . . . . . . . . . . . . . . . . 1 . . . . Parts Fried 2 | . . . . . . . . . . . . . . . . . . . . . . . . . 1 . . . . . 1 . . . . Impact Corruptions . | . . . . . . . . . . . . . . . . . . . . . . . . . . . . . . . . . . . . Robots Melted 4 | . . . . . . . . . . . . . . . 1 . . 1 . . . . . . . . . . . . 1 . 1 . . Combat Hostiles 2 | . . . . . . . . . . . . . . . 1 . . 1 . . . . . . . . . . . . . . . . . Parts Melted 39 | 1 . . . . 2 . . . . . . . 5 . 6 . . 2 . 4 . 3 . 6 . 3 2 . . . 1 . 4 . . Heat Transferred 22699 | 703 481 . . . 962 . . . . . . . 2501 1308 3047 . 100 500 111 1012 . 3019 224 2629 777 1147 737 74 . 259 2701 . 37 370 . Parts Sabotaged 6 | . . . . . . . . . . . . . . . . 4 . . . . . . . . . . . . . . 2 . . . . Parts Stolen . | . . . . . . . . . . . . . . . . . . . . . . . . . . . . . . . . . . . . Parts Stripped . | . . . . . . . . . . . . . . . . . . . . . . . . . . . . . . . . . . . . Power Chain Reactions . | . . . . . . . . . . . . . . . . . . . . . . . . . . . . . . . . . . . . Alert | -11 -10 -10 -10 -9 -8 -8 -8 -8 -7 -7 -7 -7 -6 -6 -6 -6 -5 -5 -5 -5 -4 -4 -4 -4 -4 -4 -4 -3 -3 -3 -2 -2 -2 -1 -1 ------- Run | Yrd Mat Min Exi Min Mat Gar Mat Gar Fac Was Fac Gar Fac Was Fac Gar Fac Gar Fac Gar Fac Was Fac Ext Cet Arc Hub Res Qua Gar Res Tes Sec Acc Com Peak Influence 1950 | 35 155 . . 66 247 570 290 513 495 154 172 1215 649 218 346 1103 840 666 522 706 386 51 84 1950 1156 719 851 467 239 709 913 614 596 432 137 Initial 1092 | . 22 . . . . 27 277 87 268 154 58 120 637 218 138 242 578 66 338 100 370 47 35 11 1092 454 181 404 99 59 398 461 200 297 55 Average 333 | 18 53 . . 13 102 316 201 332 326 99 97 758 259 204 244 619 597 367 246 444 335 48 53 689 1123 635 406 185 70 435 450 501 344 325 98 Maximum Alert Level 5 | . . . . . 1 2 1 2 2 . . 4 2 1 1 4 3 2 2 3 1 . . 5 4 3 3 2 1 3 3 2 2 2 . Low Security (%) 39 | 100 100 100 . 100 78 29 43 21 6 100 100 7 47 68 27 . 16 35 50 7 13 100 100 20 . . 13 62 89 12 . . 25 12 100 Level 1 25 | . . . . . 21 41 56 27 71 . . 5 29 32 72 22 1 20 25 40 86 . . 14 . . 33 9 10 31 52 13 28 53 . Level 2 23 | . . . . . . 29 . 51 22 . . 21 23 . . 42 33 44 23 40 . . . 25 . 62 49 27 . 47 40 86 46 33 . Level 3 8 | . . . . . . . . . . . . 57 . . . 32 48 . . 11 . . . 16 22 37 3 . . 7 6 . . . . Level 4 1 | . . . . . . . . . . . . 8 . . . 3 . . . . . . . 15 77 . . . . . . . . . . Level 5 . | . . . . . . . . . . . . . . . . . . . . . . . . 8 . . . . . . . . . . . High Security . | . . . . . . . . . . . . . . . . . . . . . . . . . . . . . . . . . . . . Max Security . | . . . . . . . . . . . . . . . . . . . . . . . . . . . . . . . . . . . . Squads Dispatched 80 | . 5 . . . 3 . 1 . 5 . 2 . 12 . 6 . 3 . 2 . 2 . . 3 . . 5 9 1 . 11 1 5 3 1 Investigation 17 | . 4 . . . . . . . 2 . . . 1 . 1 . 1 . 1 . 1 . . . . . . 2 . . . . 1 3 . Extermination 16 | . . . . . . . . . 2 . 1 . 5 . . . 1 . . . 1 . . . . . . . 1 . 4 . 1 . . Reinforcement 33 | . 1 . . . 2 . . . 1 . 1 . 5 . 2 . 1 . . . . . . 1 . . 2 7 . . 5 1 3 . 1 Assault 9 | . . . . . . . . . . . . . 1 . . . . . 1 . . . . 2 . . 3 . . . 2 . . . . Garrison 5 | . . . . . 1 . 1 . . . . . . . 3 . . . . . . . . . . . . . . . . . . . . Intercept . | . . . . . . . . . . . . . . . . . . . . . . . . . . . . . . . . . . . . Searches Triggered 3 | . . . . . . . . . . . . . . . . . . . . . . . . . . . . . . . . 1 1 1 . Construction Impeded 2 | . . . . . . . . . . . . . . . 1 . . . . . . . . 1 . . . . . . . . . . . Haulers Reinforced 6 | . . . . . . . . . . . . . 2 . 1 . . . . . . . . . . . . 2 . . 1 . . . . Active Scanning Responses . | . . . . . . . . . . . . . . . . . . . . . . . . . . . . . . . . . . . . Cargo Convoy Interrupts . | . . . . . . . . . . . . . . . . . . . . . . . . . . . . . . . . . . . . Alert ID Control Effect 26 | . . . . . . . . . . . . . . . . 7 . 2 5 1 1 . . . . . . . . 1 9 . . . . Stealth | -11 -10 -10 -10 -9 -8 -8 -8 -8 -7 -7 -7 -7 -6 -6 -6 -6 -5 -5 -5 -5 -4 -4 -4 -4 -4 -4 -4 -3 -3 -3 -2 -2 -2 -1 -1 --------- Run | Yrd Mat Min Exi Min Mat Gar Mat Gar Fac Was Fac Gar Fac Was Fac Gar Fac Gar Fac Gar Fac Was Fac Ext Cet Arc Hub Res Qua Gar Res Tes Sec Acc Com Distress Signals 26 | . 1 . . . 2 . 1 . . . . . . . 1 . . . . . . . . 2 2 . 1 5 1 . 5 . 3 1 1 Communications Jammed 197 | . . . . . . . . . . . . . 18 . 2 . . . 2 . . . 1 . . . 56 . 2 . 116 . . . . Distress Signals 188 | . . . . . . . . . . . . . 14 . 2 . . . . . . . . . . . 55 . 1 . 116 . . . . Times Spotted 768 | . 29 . . 2 33 21 6 16 28 6 5 31 51 6 30 38 27 29 26 32 5 5 3 59 10 8 26 9 15 37 76 16 52 14 17 Peak Tracking Total 15 | . 6 . . 2 6 4 2 7 4 2 2 7 3 5 4 10 5 5 5 7 4 1 1 7 5 1 9 3 4 6 8 8 15 5 5 Tactical Retreats 44 | . 1 . . . 1 . . 2 . . . 2 5 . . 2 2 1 . . . . . 4 . . 1 . . 1 4 4 10 3 1 Traps | -11 -10 -10 -10 -9 -8 -8 -8 -8 -7 -7 -7 -7 -6 -6 -6 -6 -5 -5 -5 -5 -4 -4 -4 -4 -4 -4 -4 -3 -3 -3 -2 -2 -2 -1 -1 ------- Run | Yrd Mat Min Exi Min Mat Gar Mat Gar Fac Was Fac Gar Fac Was Fac Gar Fac Gar Fac Gar Fac Was Fac Ext Cet Arc Hub Res Qua Gar Res Tes Sec Acc Com Traps Triggered 60 | . 1 . . . . 3 . 4 1 . . 8 2 . 2 11 1 8 3 5 1 . . . . . . 1 1 1 2 1 1 2 1 Indirectly . | . . . . . . . . . . . . . . . . . . . . . . . . . . . . . . . . . . . . Trap Hack Attempts . | . . . . . . . . . . . . . . . . . . . . . . . . . . . . . . . . . . . . Triggered . | . . . . . . . . . . . . . . . . . . . . . . . . . . . . . . . . . . . . Disarmed . | . . . . . . . . . . . . . . . . . . . . . . . . . . . . . . . . . . . . Reprogrammed . | . . . . . . . . . . . . . . . . . . . . . . . . . . . . . . . . . . . . Reused . | . . . . . . . . . . . . . . . . . . . . . . . . . . . . . . . . . . . . Traps Extracted . | . . . . . . . . . . . . . . . . . . . . . . . . . . . . . . . . . . . . Installed . | . . . . . . . . . . . . . . . . . . . . . . . . . . . . . . . . . . . . Triggered . | . . . . . . . . . . . . . . . . . . . . . . . . . . . . . . . . . . . . Machines | -11 -10 -10 -10 -9 -8 -8 -8 -8 -7 -7 -7 -7 -6 -6 -6 -6 -5 -5 -5 -5 -4 -4 -4 -4 -4 -4 -4 -3 -3 -3 -2 -2 -2 -1 -1 ---------- Run | Yrd Mat Min Exi Min Mat Gar Mat Gar Fac Was Fac Gar Fac Was Fac Gar Fac Gar Fac Gar Fac Was Fac Ext Cet Arc Hub Res Qua Gar Res Tes Sec Acc Com Machines Disabled 55 | . . . . . . . . 2 . . . 2 11 . 2 2 . 2 4 1 . . . 2 . 4 4 3 1 2 1 6 5 1 . Max in Single Turn 6 | . . . . . . . . 1 . . . 1 6 . 2 1 . 1 2 1 . . . 1 . 1 2 1 1 1 1 1 1 1 . Garrison Access 5 | . . . . . . . . . . . . . . . . . . . . . . . . . . . 1 1 . . . 1 1 1 . Garrison Relay 11 | . . . . . . . . 1 . . . 1 . . . 2 . 1 . 3 . . . . . . . . . 3 . . . . . Network Hub 1 | . . . . . . . . . . . . . . . . . . . . . . . . . . . 1 . . . . . . . . Machines Repaired . | . . . . . . . . . . . . . . . . . . . . . . . . . . . . . . . . . . . . Machines Dismantled 18 | . . . . . . . . . . . . . . . . . . . . 2 . . . 7 . . . . 2 4 . 1 2 . . Machines Sabotaged . | . . . . . . . . . . . . . . . . . . . . . . . . . . . . . . . . . . . . Overloaded Fab Kills . | . . . . . . . . . . . . . . . . . . . . . . . . . . . . . . . . . . . . Hacking | -11 -10 -10 -10 -9 -8 -8 -8 -8 -7 -7 -7 -7 -6 -6 -6 -6 -5 -5 -5 -5 -4 -4 -4 -4 -4 -4 -4 -3 -3 -3 -2 -2 -2 -1 -1 --------- Run | Yrd Mat Min Exi Min Mat Gar Mat Gar Fac Was Fac Gar Fac Was Fac Gar Fac Gar Fac Gar Fac Was Fac Ext Cet Arc Hub Res Qua Gar Res Tes Sec Acc Com Machines Accessed 116 | . 9 . 2 . 8 3 1 . 8 . 2 2 11 . 2 2 5 2 5 2 1 . 4 . . . 1 4 10 3 5 5 11 8 . Terminals 68 | . 6 . . . 5 3 . . 4 . . 2 7 . . 2 3 2 1 2 . . 1 . . . 1 1 7 3 2 3 8 5 . Fabricators 10 | . . . . . . . . . 1 . . . 1 . 1 . 1 . 1 . 1 . 2 . . . . 1 . . 1 . . . . Repair Stations 9 | . 1 . . . . . . . 3 . . . 1 . . . . . 1 . . . . . . . . 1 . . 1 1 . . . Recycling Units 4 | . 2 . . . 1 . . . . . . . 1 . . . . . . . . . . . . . . . . . . . . . . Scanalyzers 12 | . . . . . 1 . . . . . 1 . 1 . . . . . 1 . . . 1 . . . . . 2 . 1 . 2 2 . Garrison Access 11 | . . . . . 1 . 1 . . . 1 . . . 1 . 1 . 1 . . . . . . . . 1 1 . . 1 1 1 . Total Hacks 314 | . 35 . 2 . 16 3 1 . 16 . 5 4 24 . 4 4 12 2 13 4 4 . 9 . . . 3 17 25 8 19 22 38 24 . Successful 117 | . 15 . 2 . 5 1 1 . 6 . 2 1 8 . 3 . 7 1 8 . 2 . 5 . . . 1 7 9 3 7 6 13 4 . Failed 197 | . 20 . . . 11 2 . . 10 . 3 3 16 . 1 4 5 1 5 4 2 . 4 . . . 2 10 16 5 12 16 25 20 . Catastrophic 52 | . 2 . . . 2 1 . . 3 . 1 . 7 . . . 2 1 3 . . . . . . . 1 2 8 . 2 3 6 8 . Database Lockouts . | . . . . . . . . . . . . . . . . . . . . . . . . . . . . . . . . . . . . Manual 58 | . 16 . 1 . 5 . . . . . . . 8 . . . . . . . . . . . . . . 6 2 . 3 11 3 3 . Terminals 194 | . 23 . . . 11 3 . . 6 . . 4 14 . . 4 9 2 3 4 . . 1 . . . 3 7 20 8 6 17 31 18 . Fabricators 32 | . . . . . . . . . 3 . . . 4 . 3 . 2 . 3 . 4 . 5 . . . . 5 . . 3 . . . . Repair Stations 29 | . 4 . . . . . . . 7 . . . 2 . . . . . 2 . . . . . . . . 4 . . 6 4 . . . Recycling Units 12 | . 8 . . . 1 . . . . . . . 3 . . . . . . . . . . . . . . . . . . . . . . Scanalyzers 32 | . . . . . 2 . . . . . 4 . 1 . . . . . 4 . . . 3 . . . . . 4 . 4 . 5 5 . Garrison Access 13 | . . . . . 2 . 1 . . . 1 . . . 1 . 1 . 1 . . . . . . . . 1 1 . . 1 2 1 . Terminal Hacks 49 | . 6 . 2 . 2 1 . . 1 . . 1 3 . . . 4 1 1 . . . 1 . . . 1 2 7 3 1 3 7 2 . Record 1 | . . . 1 . . . . . . . . . . . . . . . . . . . . . . . . . . . . . . . . Part Schematic 2 | . 1 . . . . . . . 1 . . . . . . . . . . . . . . . . . . . . . . . . . . Robot Analysis 4 | . 3 . . . . . . . . . . . 1 . . . . . . . . . . . . . . . . . . . . . . Prototype ID Bank 2 | . 1 . . . . . . . . . . . . . . . . . . . . . . . . . . . . . . . 1 . . Open Door 3 | . . . . . . . . . . . . . . . . . . . . . . . 1 . . . . . . . . . 2 . . Branch Access Points 2 | . . . . . . . . . . . . . . . . . . . . . . . . . . . . 1 . . . . . 1 . Emergency Access Points 6 | . 1 . . . . 1 . . . . . 1 . . . . . 1 . . . . . . . . . . . 1 . 1 . . . Terminal Index 2 | . . . . . . . . . . . . . . . . . . . . . . . . . . . . . 1 . . . 1 . . Fabricator Index 1 | . . . . . . . . . . . . . . . . . . . . . . . . . . . . . . . . 1 . . . Scanalyzer Index 1 | . . . . . . . . . . . . . . . . . . . . . . . . . . . . . . . . . 1 . . Garrison Index 1 | . . . . . . . . . . . . . . . . . . . . . . . . . . . . . . . 1 . . . . Unreport Threat 13 | . . . . . 2 . . . . . . . 1 . . . 4 . . . . . . . . . . 1 2 . . 1 1 1 . Locate Traps 3 | . . . . . . . . . . . . . 1 . . . . . . . . . . . . . . . 2 . . . . . . Recall Reinforcements 1 | . . . . . . . . . . . . . . . . . . . . . . . . . . . 1 . . . . . . . . Registered Components 1 | . . . . . . . . . . . . . . . . . . . . . . . . . . . . . . . . . 1 . . Zone Layout 3 | . . . . . . . . . . . . . . . . . . . 1 . . . . . . . . . 2 . . . . . . Garrison Registry 1 | . . . . . . . . . . . . . . . . . . . . . . . . . . . . . . 1 . . . . . Patrol Navigation 1 | . . . . . . . . . . . . . . . . . . . . . . . . . . . . . . 1 . . . . . Derelict Proto ID Bank 1 | . . . 1 . . . . . . . . . . . . . . . . . . . . . . . . . . . . . . . . Fabricator Hacks 15 | . . . . . . . . . 2 . . . 2 . 2 . 2 . 1 . 2 . 2 . . . . 1 . . 1 . . . . Network Status 2 | . . . . . . . . . . . . . . . . . . . . . . . 1 . . . . . . . 1 . . . . Load Schematic 7 | . . . . . . . . . 1 . . . 1 . 1 . 1 . 1 . 1 . . . . . . 1 . . . . . . . Build 6 | . . . . . . . . . 1 . . . 1 . 1 . 1 . . . 1 . 1 . . . . . . . . . . . . Repair Station Hacks 15 | . 4 . . . . . . . 3 . . . 1 . . . . . 1 . . . . . . . . 3 . . 3 . . . . Scan Component 9 | . 2 . . . . . . . 2 . . . 1 . . . . . 1 . . . . . . . . 1 . . 2 . . . . Repair 5 | . 2 . . . . . . . 1 . . . . . . . . . . . . . . . . . . 1 . . 1 . . . . Refit 1 | . . . . . . . . . . . . . . . . . . . . . . . . . . . . 1 . . . . . . . Recycling Unit Hacks 4 | . 3 . . . . . . . . . . . 1 . . . . . . . . . . . . . . . . . . . . . . Retrieve Components 4 | . 3 . . . . . . . . . . . 1 . . . . . . . . . . . . . . . . . . . . . . Scanalyzer 15 | . . . . . 2 . . . . . 1 . . . . . . . 4 . . . 2 . . . . . 1 . 2 . 3 . . Insert Component 11 | . . . . . 1 . . . . . 1 . . . . . . . 2 . . . 1 . . . . . 1 . 2 . 3 . . Analyze 4 | . . . . . 1 . . . . . . . . . . . . . 2 . . . 1 . . . . . . . . . . . . Garrison Access Hacks 12 | . . . . . 1 . 1 . . . 1 . . . 1 . 1 . 1 . . . . . . . . 1 1 . . 1 2 1 . Unlock Access 7 | . . . . . 1 . 1 . . . 1 . . . 1 . 1 . 1 . . . . . . . . . 1 . . . . . . Seal Access 4 | . . . . . . . . . . . . . . . . . . . . . . . . . . . . 1 . . . 1 1 1 . Coupler Status 1 | . . . . . . . . . . . . . . . . . . . . . . . . . . . . . . . . . 1 . . Unauthorized Hacks 7 | . 2 . . . . . . . . . . . 1 . . . . . . . . . . . . . . . . . . 2 1 1 . Terminals 4 | . . . . . . . . . . . . . . . . . . . . . . . . . . . . . . . . 2 1 1 . Track 1 | . . . . . . . . . . . . . . . . . . . . . . . . . . . . . . . . 1 . . . Assimilate 3 | . . . . . . . . . . . . . . . . . . . . . . . . . . . . . . . . 1 1 1 . Fabricators . | . . . . . . . . . . . . . . . . . . . . . . . . . . . . . . . . . . . . Repair Stations . | . . . . . . . . . . . . . . . . . . . . . . . . . . . . . . . . . . . . Recycling Units 3 | . 2 . . . . . . . . . . . 1 . . . . . . . . . . . . . . . . . . . . . . Reject 1 | . . . . . . . . . . . . . 1 . . . . . . . . . . . . . . . . . . . . . . Tunnel 2 | . 2 . . . . . . . . . . . . . . . . . . . . . . . . . . . . . . . . . . Scanalyzers . | . . . . . . . . . . . . . . . . . . . . . . . . . . . . . . . . . . . . Garrison Access . | . . . . . . . . . . . . . . . . . . . . . . . . . . . . . . . . . . . . Data Cores Recovered 1 | . . . . . . . . . . . . . 1 . . . . . . . . . . . . . . . . . . . . . . Used . | . . . . . . . . . . . . . . . . . . . . . . . . . . . . . . . . . . . . Hacking Detections 94 | . 9 . . . 6 3 . . 8 . 1 1 10 . 2 2 4 1 5 2 1 . 3 . . . 1 2 9 3 4 3 7 7 . Full Trace Events 14 | . 2 . . . . . . . 2 . . 1 1 . 1 . 1 . 1 . 1 . . . . . . 1 . . . . 1 2 . Feedback Events . | . . . . . . . . . . . . . . . . . . . . . . . . . . . . . . . . . . . . Feedback Blocked . | . . . . . . . . . . . . . . . . . . . . . . . . . . . . . . . . . . . . Robot Schematics Acquired 1 | . . . . . . . . . . . . . . . . . . . . . . . . . . . . . . . . . 1 . . Robots Built . | . . . . . . . . . . . . . . . . . . . . . . . . . . . . . . . . . . . . Authchips . | . . . . . . . . . . . . . . . . . . . . . . . . . . . . . . . . . . . . Time . | . . . . . . . . . . . . . . . . . . . . . . . . . . . . . . . . . . . . Total Robot Build Rating . | . . . . . . . . . . . . . . . . . . . . . . . . . . . . . . . . . . . . Part Schematics Acquired 7 | . 1 . . . 1 . . . 1 . . . . . . . . . 2 . . . 1 . . . . . . . . . 1 . . Parts Built 8 | . . . . . . . . . 1 . . . 1 . 1 . 1 . . . 2 . 2 . . . . . . . . . . . . Authchips . | . . . . . . . . . . . . . . . . . . . . . . . . . . . . . . . . . . . . Time 475 | . . . . . . . . . 58 . . . 58 . 116 . 116 . . . 58 . 69 . . . . . . . . . . . . Total Part Build Rating 44 | . . . . . . . . . 3 . . . 3 . 3 . 3 . . . 14 . 18 . . . . . . . . . . . . Parts Repaired 4 | . 2 . . . . . . . 1 . . . . . . . . . . . . . . . . . . 1 . . . . . . . Time 235 | . 52 . . . . . . . 38 . . . . . . . . . . . . . . . . . . 50 . . 95 . . . . Parts Recycled . | . . . . . . . . . . . . . . . . . . . . . . . . . . . . . . . . . . . . Recycled Matter . | . . . . . . . . . . . . . . . . . . . . . . . . . . . . . . . . . . . . Retrieved Matter . | . . . . . . . . . . . . . . . . . . . . . . . . . . . . . . . . . . . . Retrieved Components 14 | . 12 . . . . . . . . . . . 2 . . . . . . . . . . . . . . . . . . . . . . Parts Scanalyzed 4 | . . . . . 1 . . . . . 1 . . . . . . . 1 . . . 1 . . . . . . . . . . . . Part Schematics Acquired 4 | . . . . . 1 . . . . . . . . . . . . . 2 . . . 1 . . . . . . . . . . . . Parts Damaged 1 | . . . . . . . . . . . 1 . . . . . . . . . . . . . . . . . . . . . . . . Bothacking | -11 -10 -10 -10 -9 -8 -8 -8 -8 -7 -7 -7 -7 -6 -6 -6 -6 -5 -5 -5 -5 -4 -4 -4 -4 -4 -4 -4 -3 -3 -3 -2 -2 -2 -1 -1 ------------ Run | Yrd Mat Min Exi Min Mat Gar Mat Gar Fac Was Fac Gar Fac Was Fac Gar Fac Gar Fac Gar Fac Was Fac Ext Cet Arc Hub Res Qua Gar Res Tes Sec Acc Com Used RIF Installer 8 | . . . . . . 1 . 2 . . . 1 . . . 1 . 1 . 1 . . . . . . . . . 1 . . . . . Code Merge 1 | . . . . . . . . . . . . . . . . . . . . 1 . . . . . . . . . . . . . . . Zone Cloak 2 | . . . . . . . . . . . . 1 . . . . . 1 . . . . . . . . . . . . . . . . . Robot Detection 1 | . . . . . . . . . . . . . . . . 1 . . . . . . . . . . . . . . . . . . . Watcher Feeds 1 | . . . . . . . . . . . . . . . . . . . . . . . . . . . . . . 1 . . . . . Patrol Navigation 1 | . . . . . . . . 1 . . . . . . . . . . . . . . . . . . . . . . . . . . . Alert ID Control 1 | . . . . . . . . 1 . . . . . . . . . . . . . . . . . . . . . . . . . . . Robots Hacked 53 | . . . . . . . . . 2 . . . 7 3 . . . 2 3 4 4 6 . . . . 2 . . 6 14 . . . . Non-combat 11 | . . . . . . . . . 2 . . . 5 . . . . . 1 . 1 . . . . . . . . . 2 . . . . Combat 42 | . . . . . . . . . . . . . 2 3 . . . 2 2 4 3 6 . . . . 2 . . 6 12 . . . . Robot Hacks Applied 64 | . . . . . . . . . 2 . . . 11 3 . . . 2 6 5 4 6 . . . . 2 . . 6 17 . . . . parse_system 4 | . . . . . . . . . 1 . . . 2 . . . . . . . . . . . . . . . . . 1 . . . . no_distress 2 | . . . . . . . . . . . . . 1 . . . . . . . . . . . . . . . . . 1 . . . . find_chute 2 | . . . . . . . . . 1 . . . 1 . . . . . . . . . . . . . . . . . . . . . . ignore_repairs 1 | . . . . . . . . . . . . . 1 . . . . . . . . . . . . . . . . . . . . . . find_fabricator 2 | . . . . . . . . . . . . . 1 . . . . . . . . . . . . . . . . . 1 . . . . find_dsf 1 | . . . . . . . . . . . . . . . . . . . . . . . . . . . . . . . 1 . . . . ignore_parts 1 | . . . . . . . . . . . . . . . . . . . . . 1 . . . . . . . . . . . . . . purge_threat 5 | . . . . . . . . . . . . . 3 . . . . . 2 . . . . . . . . . . . . . . . . block_reporting 1 | . . . . . . . . . . . . . . . . . . . 1 . . . . . . . . . . . . . . . . map_route 1 | . . . . . . . . . . . . . . . . . . . . . . . . . . . . . . . 1 . . . . ignore_targets 9 | . . . . . . . . . . . . . . 3 . . . . . . . 6 . . . . . . . . . . . . . find_shortcuts 1 | . . . . . . . . . . . . . . . . . . . 1 . . . . . . . . . . . . . . . . spike_heat 4 | . . . . . . . . . . . . . . . . . . . . 2 . . . . . . 1 . . . 1 . . . . amplify_resonance 6 | . . . . . . . . . . . . . . . . . . . . . 1 . . . . . . . . 3 2 . . . . wipe_record 3 | . . . . . . . . . . . . . 2 . . . . . . . . . . . . . . . . . 1 . . . . formatsys_high 21 | . . . . . . . . . . . . . . . . . . 2 2 3 2 . . . . . 1 . . 3 8 . . . . Relay Couplers Released 67 | . . . . . . . . 5 4 . . 7 4 . . 7 . 3 . 13 . . . . . . 1 . . 17 . 1 2 3 . Machine Destruction 53 | . . . . . . . . 5 . . . 4 . . . 7 . 3 . 13 . . . . . . 1 . . 14 . 1 2 3 . Programmers 14 | . . . . . . . . . 4 . . 3 4 . . . . . . . . . . . . . . . . 3 . . . . . Attached 29 | . . . . . . . . . . . . . 2 1 . 1 . 2 3 4 . . . . . . 1 1 . 8 . 1 3 2 . Merged Code Value 154 | . . . . . . . . . . . . . . . . . . . . 22 8 . . . . . . . . 119 . . . 5 . Fabnet Peak Effective % . | . . . . . . . . . . . . . . . . . . . . . . . . . . . . . . . . . . . . Robots Rewired 32 | . . . . . . . . . . . . . . . . 6 . . . . . . . 26 . . . . . . . . . . . Allies Hacked 1 | . . . . . . . . . . . . . . . . . . . . . . . . . . . . . . . 1 . . . . Hacks Repelled . | . . . . . . . . . . . . . . . . . . . . . . . . . . . . . . . . . . . . Allies | -11 -10 -10 -10 -9 -8 -8 -8 -8 -7 -7 -7 -7 -6 -6 -6 -6 -5 -5 -5 -5 -4 -4 -4 -4 -4 -4 -4 -3 -3 -3 -2 -2 -2 -1 -1 -------- Run | Yrd Mat Min Exi Min Mat Gar Mat Gar Fac Was Fac Gar Fac Was Fac Gar Fac Gar Fac Gar Fac Was Fac Ext Cet Arc Hub Res Qua Gar Res Tes Sec Acc Com Total Allies 73 | . . . . . . . . . . . . . . . . 6 . 2 2 3 2 . . 36 . . 1 . . 7 11 1 1 1 . Largest Group 20 | . . . . . . . . . . . . . . . . 6 . 1 3 2 1 . . 20 9 . 1 . . 5 9 1 1 1 . Highest-Rated Group 977 | . . . . . . . . . . . . . . . . 192 . 41 118 58 47 . . 977 390 . 56 . . 296 562 26 26 26 . Highest-Rated Ally 159 | . . . . . . . . . . . . . . . . 32 . 41 41 49 47 . . 159 51 . 56 . . 116 88 26 26 26 . Total Orders 17 | . . . . . . . . . . . . . . . . . . 2 3 . . . . . . . . . . 2 8 . 1 1 . STAY 9 | . . . . . . . . . . . . . . . . . . 1 1 . . . . . . . . . . 1 4 . 1 1 . FOLLOW 8 | . . . . . . . . . . . . . . . . . . 1 2 . . . . . . . . . . 1 4 . . . . Ally Attacks 459 | . . . . . . . . . . . . . . . . 29 . 16 21 6 5 . . 229 38 . 3 . . 24 88 . . . . Total Damage 14740 | . . . . . . . . . . . . . . . . 1314 . 376 849 200 132 . . 6658 1012 . 116 . . 991 3092 . . . . Kills 90 | . . . . . . . . . . . . . . . . 9 . 2 5 2 1 . . 42 5 . . . . 4 20 . . . . Allies Corrupted 2 | . . . . . . . . . . . . . . . . . . . . . . . . . . . . . . 1 1 . . . . Allies Melted 1 | . . . . . . . . . . . . . . . . . . . . . . . . 1 . . . . . . . . . . . Intel | -11 -10 -10 -10 -9 -8 -8 -8 -8 -7 -7 -7 -7 -6 -6 -6 -6 -5 -5 -5 -5 -4 -4 -4 -4 -4 -4 -4 -3 -3 -3 -2 -2 -2 -1 -1 ------- Run | Yrd Mat Min Exi Min Mat Gar Mat Gar Fac Was Fac Gar Fac Was Fac Gar Fac Gar Fac Gar Fac Was Fac Ext Cet Arc Hub Res Qua Gar Res Tes Sec Acc Com Robot Analysis Total 4 | . 3 . . . . . . . . . . . 1 . . . . . . . . . . . . . . . . . . . . . . Derelict Logs Recovered 2 | . . 1 . 1 . . . . . . . . . . . . . . . . . . . . . . . . . . . . . . . Drone Launches . | . . . . . . . . . . . . . . . . . . . . . . . . . . . . . . . . . . . . Drone Recoveries . | . . . . . . . . . . . . . . . . . . . . . . . . . . . . . . . . . . . . Exploration | -11 -10 -10 -10 -9 -8 -8 -8 -8 -7 -7 -7 -7 -6 -6 -6 -6 -5 -5 -5 -5 -4 -4 -4 -4 -4 -4 -4 -3 -3 -3 -2 -2 -2 -1 -1 ------------- Run | Yrd Mat Min Exi Min Mat Gar Mat Gar Fac Was Fac Gar Fac Was Fac Gar Fac Gar Fac Gar Fac Was Fac Ext Cet Arc Hub Res Qua Gar Res Tes Sec Acc Com Turns Passed 38374 | 319 3080 120 1170 1418 1695 1289 710 745 1639 214 347 1882 3906 250 1017 1857 1216 1111 1055 1551 463 208 475 1407 321 472 350 1447 939 1508 2496 424 626 457 190 Spaces Moved 21077 | 161 993 36 524 523 929 738 310 392 885 98 202 801 1315 99 299 773 629 577 627 614 160 78 315 644 146 224 145 925 547 833 1339 1099 1429 1346 322 Core 12 | 5 . . . . . . . . . . . . . . 2 1 . . . . . . . . . . 1 . . . . . 1 . 2 Treads 4140 | 156 993 36 103 . . . . . . . . 380 1314 99 252 297 165 . . 248 97 . . . . . . . . . . . . . . Legs 2745 | . . . . . . . . . . . . . . . . . . . . . . . . . . . . 88 547 833 1277 . . . . Wheels 9248 | . . . 421 523 929 738 310 392 885 98 202 421 1 . 45 475 464 577 627 366 63 78 315 644 146 224 144 160 . . . . . . . Hover . | . . . . . . . . . . . . . . . . . . . . . . . . . . . . . . . . . . . . Flight 4899 | . . . . . . . . . . . . . . . . . . . . . . . . . . . . 677 . . 62 1099 1399 1342 320 Fastest Speed 18 | 50 160 320 195 195 135 150 150 150 150 100 130 130 160 160 160 130 130 130 130 130 110 130 130 130 130 130 110 45 110 110 19 18 22 23 26 Average Speed 140 | 156 276 320 219 195 143 150 150 150 150 132 141 196 244 171 225 192 170 142 134 201 228 130 130 130 148 149 148 125 129 130 115 22 23 23 29 Slowest Speed 1150 | 160 480 320 320 195 195 150 150 150 160 160 145 270 270 240 1150 800 320 145 145 480 320 130 130 130 150 150 400 190 190 260 190 24 101 25 100 Overloaded Moves . | . . . . . . . . . . . . . . . . . . . . . . . . . . . . . . . . . . . . Propulsion Burnouts . | . . . . . . . . . . . . . . . . . . . . . . . . . . . . . . . . . . . . Robots Hopped 25 | . . . . . . . . . . . . . . . . . . . . . . . . . . . . . . . 6 3 9 6 1 Cave-ins Triggered . | . . . . . . . . . . . . . . . . . . . . . . . . . . . . . . . . . . . . Teleports 21 | . . . . . . . . . . . . . . . . . . . . . . . . . . . . . . . . . . 9 12 Spacefolds 13 | . . . . . . . . . . . . . . . . . . . . . . . . . . . . . . . . . 12 1 . Exploration Rate (%) 50 | 9 97 7 71 89 57 64 23 36 23 72 9 76 36 96 11 77 23 84 18 61 6 77 7 87 70 95 15 33 58 84 37 88 81 35 22 Regions Visited 35 Branch Regions 11 Pre-discovered Areas 3 | . 2 . 1 . . . . . . . . . . . . . . . . . . . . . . . . . . . . . . . . Known Exits Taken 10 | . . 1 . . 1 . 1 . . . 1 . . . 1 . 1 . 1 . . . . . . . . 1 1 . . . . 1 . Unknown Exits Taken 12 | 1 1 . 1 1 . . . . . . . . . . . . . . . . . . 1 1 1 1 1 . . . 1 1 1 . . Scrap Searched 4 | . . . . 4 . . . . . . . . . . . . . . . . . . . . . . . . . . . . . . . Spaces Dug 99 | . 7 . . 30 1 4 . 1 1 . . . 3 . 3 . . . 2 . 1 . 1 . . . . 6 1 1 6 6 12 9 4 Terrain Destroyed 597 | . 7 . . 30 1 4 . 1 1 . . 4 90 1 4 . . 3 7 2 1 4 5 44 17 43 153 13 32 34 52 6 20 14 4 Melee 32 | . 3 . . 5 1 4 . 1 1 . . . . . . . . . . . . . . . . . . . . . 1 6 10 . . Projectile 329 | . . . . . . . . . . . . 4 33 1 4 . . 3 7 2 1 4 5 44 17 43 28 13 32 34 34 . 2 14 4 AOE 227 | . 4 . . 25 . . . . . . . . 57 . . . . . . . . . . . . . 124 . . . 17 . . . . Terrain Rammed . | . . . . . . . . . . . . . . . . . . . . . . . . . . . . . . . . . . . . Walls Destroyed . | . . . . . . . . . . . . . . . . . . . . . . . . . . . . . . . . . . . . Machines Disabled . | . . . . . . . . . . . . . . . . . . . . . . . . . . . . . . . . . . . . Actions | -11 -10 -10 -10 -9 -8 -8 -8 -8 -7 -7 -7 -7 -6 -6 -6 -6 -5 -5 -5 -5 -4 -4 -4 -4 -4 -4 -4 -3 -3 -3 -2 -2 -2 -1 -1 --------- Run | Yrd Mat Min Exi Min Mat Gar Mat Gar Fac Was Fac Gar Fac Was Fac Gar Fac Gar Fac Gar Fac Was Fac Ext Cet Arc Hub Res Qua Gar Res Tes Sec Acc Com Total 27042 | 197 1189 38 551 860 1150 869 545 500 1115 154 234 957 1758 133 499 1071 719 782 759 787 257 125 372 1032 198 281 227 1156 703 1090 2025 1217 1625 1452 415 Wait 2403 | 1 53 1 . 288 38 45 221 34 139 . 2 22 223 . 104 42 4 55 36 21 69 1 43 14 . 3 35 97 78 54 395 31 117 61 76 Move 20982 | 160 992 35 523 522 929 737 310 391 885 97 202 800 1315 98 299 772 629 576 627 613 160 77 314 643 145 223 144 924 547 832 1326 1092 1393 1330 320 Hop 25 | . . . . . . . . . . . . . . . . . . . . . . . . . . . . . . . 6 3 9 6 1 Pick Up 311 | 11 28 . 12 1 30 7 1 2 7 11 5 10 25 3 7 17 9 5 5 14 3 . 1 5 5 1 3 6 6 17 35 3 10 5 1 Fast Attach 345 | 6 7 . . 2 13 1 1 . 6 6 2 14 15 1 12 20 6 6 11 15 4 1 1 13 6 10 4 41 17 25 26 22 20 9 2 Attach 149 | 1 3 . . . 11 2 . 2 2 3 5 1 9 2 2 12 2 4 2 10 2 . . 2 3 . 4 10 1 7 21 5 14 2 5 Detach 37 | . . . . . . . . . 2 . . . . . . 5 1 2 1 3 . . . . . . . 2 . 2 3 5 6 1 4 Swap 317 | . 10 . 1 7 14 8 1 4 6 . 4 3 33 6 7 10 14 14 22 23 4 16 3 20 7 3 4 4 6 25 30 . 2 6 . Drop 441 | 2 14 . 15 4 34 6 3 1 11 3 2 19 28 1 8 18 15 9 15 16 9 4 5 17 8 11 4 45 12 28 39 15 10 8 2 Fire 1389 | 16 77 . . 31 80 43 8 31 56 34 12 68 106 22 58 83 37 47 40 66 6 26 5 43 24 30 26 27 22 80 143 2 12 24 4 Melee 53 | . 3 . . 5 1 4 . 3 1 . . . . . . . . . . . . . . . . . . . . . 1 16 19 . . Ram 3 | . . . . . . . . . . . . . . . . . . . . . . . . . . . 3 . . . . . . . . Kick 1 | . . . . . . . . . . . . . . . . . . . . . . . . . . . . . 1 . . . . . . Crush 8 | . 2 2 . . . . . . . . . . 2 . 2 . . . . . . . . . . . . . . . . . . . . Escape Stasis 186 | . . . . . . 16 . 32 . . . 20 2 . . 50 2 64 . . . . . . . . . . . . . . . . . Rewire 261 | . . . . . . . . . . . . . . . . 42 . . . . . . . 219 . . . . . . . . . . . Trap . | . . . . . . . . . . . . . . . . . . . . . . . . . . . . . . . . . . . . Miscellaneous 131 | . . . . . . . . . . . . . . . . . . . . 6 . . . 56 . . . . 13 20 . 23 13 . . Route ------- -11/Scrapyard -10/Materials (discovered 4 exits: [*Mat x3] / [*Min]) -10/Mines -10/Exiles (discovered 2 exits: [*Min x2]) -9/Mines (discovered 2 exits: *Mat x2) -8/Materials (discovered 3 exits: *Fac x2 / Gar) -8/Garrison (discovered 2 exits: *Mat x2) -8/Materials -8/Garrison -7/Factory -7/Waste -7/Factory (discovered 2 exits: *Fac / Gar) -7/Garrison (discovered 3 exits: *Fac x3) -6/Factory (discovered 2 exits: [*Low x2]) -6/Waste -6/Factory -6/Garrison (discovered 3 exits: *Fac x3) -5/Factory (discovered 2 exits: [*Upp] / Gar) -5/Garrison (discovered 4 exits: *Fac x3 / *Fac) -5/Factory -5/Garrison (discovered 3 exits: *Fac x3) -4/Factory -4/Waste -4/Factory -4/Extension (discovered 2 exits: *Res / [*Cet]) -4/Cetus (discovered 2 exits: *Res / [*Arc]) -4/Archives (discovered 3 exits: *Res / *Hub x2) -4/Hub_04(d) -3/Research (discovered 3 exits: *Res / *Qua x2) -3/Quarantine (discovered 2 exits: *Res / Gar) -3/Garrison (discovered 3 exits: *Res x3) -2/Research -2/Testing (discovered 2 exits: *Acc / *Sec) -2/Section 7 -1/Access -1/Command 0b10 Command History --------- Turn | Location | Event 12 | -11/Scrapyard | Discovered new exit (range 15) 320 | -11/Scrapyard | Entered Materials 321 | -10/Materials | Build established: Mutant 404 | -10/Materials | Discovered new exit (range 6) 629 | -10/Materials | Discovered new exit (range 7) 1957 | -10/Materials | Discovered new exit (range 9) 2008 | -10/Materials | Repaired Lgt. Treads 2036 | -10/Materials | Repaired Lgt. Treads 2071 | -10/Materials | Core integrity fell below 50% 2695 | -10/Materials | Discovered new exit (range 7) 3400 | -10/Materials | Entered Mines 3407 | -10/Mines | Identified exit to Exiles 3504 | -10/Mines | Deemed a non-threat by the Exiles lab entrance 3520 | -10/Mines | Entered Exiles 3562 | -10/Exiles | Discovered new exit (range 15) 3600 | -10/Exiles | Met 8R-AWN 3648 | -10/Exiles | Met EX-HEX 3892 | -10/Exiles | Met EX-DEC 3933 | -10/Exiles | Learned location of Zion (-7) 4027 | -10/Exiles | Discovered new exit (range 14) 4370 | -10/Exiles | Met EX-BIN 4394 | -10/Exiles | Aligned with FarCom system 4396 | -10/Exiles | Given EX-Vault access code 4443 | -10/Exiles | Opened EX-Vault 4456 | -10/Exiles | Found XL Autogun Array 4460 | -10/Exiles | Found 0b10 Alert Chip 4467 | -10/Exiles | Found Trap Reconfigurator 4516 | -10/Exiles | Warned to stay clear of 0b10 Research branches 4690 | -10/Exiles | Stole three prototypes: 0b10 Alert Chip, Trap Reconfigurator, XL Autogun Array 4690 | -10/Exiles | Entered Mines 4704 | -9/Mines | Learned Materials trap positions 5096 | -9/Mines | Discovered new exit (range 11) 5456 | -9/Mines | YI-UF0 nonchalantly dropped a Grenade Launcher on the ground 5506 | -9/Mines | Murdered YI-UF0 5506 | -9/Mines | Destroyed YI-UF0 5612 | -9/Mines | Assembled infested the area 5948 | -9/Mines | Joined a pair of Derelicts in attacking an 0b10 outpost 6000 | -9/Mines | Discovered new exit (range 8) 6108 | -9/Mines | Entered Materials 6108 | -8/Materials | Evolved 4 slots: Utility x2, Weapon x2 6109 | -8/Materials | Loaded intel: 8 trap records 6486 | -8/Materials | Build established: Skirmisher 6657 | -8/Materials | Lost 5 parts (1p2n2w) 6918 | -8/Materials | Discovered new exit (range 16) 7380 | -8/Materials | Discovered new exit (range 4) 7742 | -8/Materials | Garrison activated, responded to threat 7803 | -8/Materials | Identified exit to Garrison 7803 | -8/Materials | Entered Garrison 7953 | -8/Garrison | Triggered checkpoint 8184 | -8/Garrison | Triggered checkpoint 8266 | -8/Garrison | Discovered new exit (range 12) 8327 | -8/Garrison | Triggered checkpoint 8400 | -8/Garrison | Triggered checkpoint 8549 | -8/Garrison | Discovered new exit (range 10) 8574 | -8/Garrison | Installed Relay Interface Framework 8658 | -8/Garrison | Triggered checkpoint 9092 | -8/Garrison | Entered Materials 9722 | -8/Materials | Core integrity fell below 50% 9729 | -8/Materials | Garrison activated, responded to threat 9802 | -8/Materials | Identified exit to Garrison 9802 | -8/Materials | Entered Garrison 10124 | -8/Garrison | Triggered checkpoint 10128 | -8/Garrison | Triggered checkpoint 10215 | -8/Garrison | Expanded RIF knowledge: Patrol Navigation 10318 | -8/Garrison | Discovered new exit (range 8) 10384 | -8/Garrison | Triggered checkpoint 10393 | -8/Garrison | Garrison Relay disabled 10473 | -8/Garrison | Expanded RIF knowledge: Alert ID Control 10547 | -8/Garrison | Entered Factory 10547 | -7/Factory | Evolved 2 slots: Utility x1, Weapon x1 10549 | -7/Factory | FarCom data flow suspended 10904 | -7/Factory | Build established: Gunner 11234 | -7/Factory | Discovered new exit (range 13) 11715 | -7/Factory | Fabricated Enh. Autogun? 12005 | -7/Factory | Repaired Broken Enh. Autogun? 12186 | -7/Factory | Sucked down chute 12186 | -7/Factory | Entered Waste 12201 | -7/Waste | EMP discharged 12201 | -7/Waste | System corruption reached 10% 12206 | -7/Waste | Spotted C-40 Crusher 12210 | -7/Waste | Spotted C-40 Crusher 12217 | -7/Waste | Crushed by Compactor (1 part destroyed, 1 dropped) 12218 | -7/Waste | Spotted C-40 Crusher 12220 | -7/Waste | Crushed by Compactor (1 part destroyed, 1 dropped) 12222 | -7/Waste | Destroyed C-40 Crusher 12232 | -7/Waste | Crushed by Compactor (1 part destroyed) 12233 | -7/Waste | Destroyed C-40 Crusher 12239 | -7/Waste | Crushed by Compactor (0 parts destroyed, 1 dropped) 12245 | -7/Waste | Crushed by Compactor (1 part destroyed, 1 dropped) 12248 | -7/Waste | Crushed by Compactor (1 part destroyed) 12249 | -7/Waste | Destroyed C-40 Crusher 12254 | -7/Waste | Spotted C-40 Crusher 12279 | -7/Waste | Lost 7 parts (3u4w) 12285 | -7/Waste | Spotted C-40 Crusher 12293 | -7/Waste | Destroyed C-40 Crusher 12301 | -7/Waste | EMP discharged 12309 | -7/Waste | Destroyed C-40 Crusher 12311 | -7/Waste | Spotted C-40 Crusher 12324 | -7/Waste | Destroyed C-40 Crusher 12342 | -7/Waste | Found Damper Plating 12375 | -7/Waste | Discovered new exit (range 20) 12400 | -7/Waste | Entered Factory 12708 | -7/Factory | Discovered new exit (range 19) 12747 | -7/Factory | Identified exit to Garrison 12747 | -7/Factory | Entered Garrison 12845 | -7/Garrison | Triggered checkpoint 12922 | -7/Garrison | Build established: Tank 12939 | -7/Garrison | Triggered checkpoint 12946 | -7/Garrison | Triggered checkpoint 12957 | -7/Garrison | Triggered checkpoint 12991 | -7/Garrison | Core integrity fell below 50% 13024 | -7/Garrison | Destroyed 10 combat bots 13173 | -7/Garrison | Discovered new exit (range 12) 13226 | -7/Garrison | Triggered checkpoint 13280 | -7/Garrison | Build established: Scavenger-Tank 13383 | -7/Garrison | Garrison Relay disabled 13704 | -7/Garrison | Discovered new exit (range 9) 13755 | -7/Garrison | Triggered checkpoint 13857 | -7/Garrison | Expanded RIF knowledge: Zone Cloak 13886 | -7/Garrison | Triggered checkpoint 14159 | -7/Garrison | Discovered new exit (range 11) 14233 | -7/Garrison | Triggered checkpoint 14629 | -7/Garrison | Entered Factory 14629 | -6/Factory | Evolved 2 slots: Utility x2 14678 | -6/Factory | Noticed a derelict Sapper rigging charges 14970 | -6/Factory | Found Hvy. Reactive Plating 15064 | -6/Factory | Discovered new exit (range 11) 15796 | -6/Factory | Spotted B-75 Beast 15994 | -6/Factory | Discovered new exit (range 4) 16325 | -6/Factory | Build established: Gunner 16720 | -6/Factory | Build established: Scavenger-Gunner 17393 | -6/Factory | Build established: Bothacker-Gunner 18288 | -6/Factory | Fabricated Enh. Autogun? 18479 | -6/Factory | First assault squad dispatched 18535 | -6/Factory | Sucked down chute 18535 | -6/Factory | Entered Waste 18548 | -6/Waste | Spotted C-40 Crusher 18550 | -6/Waste | EMP discharged 18550 | -6/Waste | System corruption reached 10% 18575 | -6/Waste | Spotted C-40 Crusher 18575 | -6/Waste | Spotted C-40 Crusher 18585 | -6/Waste | Spotted C-40 Crusher 18587 | -6/Waste | Spotted C-40 Crusher 18589 | -6/Waste | Destroyed C-40 Crusher 18589 | -6/Waste | Destroyed C-40 Crusher 18602 | -6/Waste | Destroyed C-40 Crusher 18614 | -6/Waste | Crushed by Compactor (1 part destroyed) 18615 | -6/Waste | Crushed by Compactor (1 part destroyed, 1 dropped) 18634 | -6/Waste | Destroyed C-40 Crusher 18638 | -6/Waste | Destroyed C-40 Crusher 18650 | -6/Waste | EMP discharged 18658 | -6/Waste | Spotted C-40 Crusher 18750 | -6/Waste | EMP discharged 18750 | -6/Waste | System corruption reached 30% 18769 | -6/Waste | Discovered new exit (range 11) 18785 | -6/Waste | Entered Factory 18842 | -6/Factory | Build established: Gunner 19469 | -6/Factory | Fabricated Enh. Autogun (x1) 19716 | -6/Factory | Lost 5 parts (1p2n2w) 19802 | -6/Factory | Identified exit to Garrison 19802 | -6/Factory | Entered Garrison 19845 | -6/Garrison | Core integrity fell below 50% 19891 | -6/Garrison | Lost 7 parts (1n3u3w) 19930 | -6/Garrison | Lost 4 parts (1p1n2w) 20036 | -6/Garrison | Triggered checkpoint 20148 | -6/Garrison | Garrison Relay disabled 20212 | -6/Garrison | Build established: Scavenger-Gunner 20274 | -6/Garrison | Triggered checkpoint 20294 | -6/Garrison | Triggered checkpoint 20300 | -6/Garrison | Triggered checkpoint 20460 | -6/Garrison | Triggered checkpoint 20465 | -6/Garrison | Triggered checkpoint 20492 | -6/Garrison | Triggered checkpoint 20522 | -6/Garrison | Triggered checkpoint 20565 | -6/Garrison | Garrison Relay disabled 20620 | -6/Garrison | Discovered new exit (range 10) 20748 | -6/Garrison | Destroyed 8 combat bots 20838 | -6/Garrison | Expanded RIF knowledge: Robot Detection 20930 | -6/Garrison | Build established: Bothacker-Gunner 21035 | -6/Garrison | Discovered new exit (range 10) 21158 | -6/Garrison | Triggered checkpoint 21359 | -6/Garrison | Discovered new exit (range 19) 21400 | -6/Garrison | Triggered checkpoint 21410 | -6/Garrison | Core integrity fell below 20% 21659 | -6/Garrison | Entered Factory 21659 | -5/Factory | Evolved 2 slots: Power x1, Weapon x1 21954 | -5/Factory | Build established: Bothacker-Executioner 22150 | -5/Factory | Discovered new exit (range 5) 22582 | -5/Factory | Fabricated Enh. Autogun? 22875 | -5/Factory | Identified exit to Garrison 22875 | -5/Factory | Entered Garrison 22993 | -5/Garrison | Triggered checkpoint 23254 | -5/Garrison | Triggered checkpoint 23277 | -5/Garrison | Triggered checkpoint 23333 | -5/Garrison | Triggered checkpoint 23369 | -5/Garrison | Expanded RIF knowledge: Zone Cloak 23408 | -5/Garrison | Discovered new exit (range 10) 23538 | -5/Garrison | Discovered new exit (range 15) 23565 | -5/Garrison | Triggered checkpoint 23624 | -5/Garrison | Garrison Relay disabled 23825 | -5/Garrison | Triggered checkpoint 23900 | -5/Garrison | Discovered new exit (range 11) 23918 | -5/Garrison | Triggered checkpoint 23937 | -5/Garrison | Discovered new exit (range 5) 23986 | -5/Garrison | Entered Factory 23986 | -5/Factory | Accompanied by 1 ally 24286 | -5/Factory | First assault squad dispatched 24424 | -5/Factory | Lost 3 allies 24603 | -5/Factory | Build established: Scavenger-Executioner 25041 | -5/Factory | Identified exit to Garrison 25041 | -5/Factory | Entered Garrison 25124 | -5/Garrison | Triggered checkpoint 25179 | -5/Garrison | Destroyed 7 combat bots 25262 | -5/Garrison | Discovered new exit (range 19) 25284 | -5/Garrison | Triggered checkpoint 25332 | -5/Garrison | Garrison Relay disabled 25395 | -5/Garrison | Triggered checkpoint 25527 | -5/Garrison | Discovered new exit (range 19) 25728 | -5/Garrison | Build established: Bothacker-Executioner 25870 | -5/Garrison | Triggered checkpoint 25977 | -5/Garrison | Expanded RIF knowledge: Code Merge 26033 | -5/Garrison | Garrison Relay disabled 26110 | -5/Garrison | Triggered checkpoint 26255 | -5/Garrison | Lost 6 parts (1p1n4w) 26321 | -5/Garrison | Build established: Botlord-Executioner 26385 | -5/Garrison | Triggered checkpoint 26500 | -5/Garrison | Garrison Relay disabled 26569 | -5/Garrison | Discovered new exit (range 8) 26592 | -5/Garrison | Entered Factory 26592 | -4/Factory | Evolved 2 slots: Utility x2 26884 | -4/Factory | Fabricated Centrium Wheel (x2) 27055 | -4/Factory | Sucked down chute 27055 | -4/Factory | Entered Waste 27057 | -4/Waste | Spotted C-40 Crusher 27067 | -4/Waste | Spotted C-40 Crusher 27070 | -4/Waste | EMP discharged 27094 | -4/Waste | Destroyed C-40 Crusher 27103 | -4/Waste | Spotted C-40 Crusher 27109 | -4/Waste | Spotted C-40 Crusher 27114 | -4/Waste | Destroyed C-40 Crusher 27126 | -4/Waste | Destroyed C-40 Crusher 27157 | -4/Waste | Destroyed C-40 Crusher 27165 | -4/Waste | Build established: Bothacker-Executioner 27170 | -4/Waste | EMP discharged 27170 | -4/Waste | System corruption reached 10% 27203 | -4/Waste | Spotted C-40 Crusher 27208 | -4/Waste | Spotted C-40 Crusher 27234 | -4/Waste | Discovered new exit (range 11) 27243 | -4/Waste | Destroyed C-40 Crusher 27263 | -4/Waste | Entered Factory 27683 | -4/Factory | Fabricated Enh. Quantum Rifle (x2) 27729 | -4/Factory | Discovered new exit (range 9) 27738 | -4/Factory | Entered Extension 27811 | -4/Extension | Rescued a captive Derelict 27812 | -4/Extension | Rescued a captive Derelict 27834 | -4/Extension | Rescued a captive Derelict 27867 | -4/Extension | Rescued a captive Derelict 27868 | -4/Extension | Rescued a captive Derelict 27900 | -4/Extension | Rescued A7 27935 | -4/Extension | Rescued a captive Derelict 27936 | -4/Extension | Rescued a captive Derelict 28113 | -4/Extension | Disrupted transfer network 28212 | -4/Extension | Rescued a captive Derelict 28430 | -4/Extension | Build established: Commander-Executioner 28540 | -4/Extension | Spotted B-86 Titan 28559 | -4/Extension | Allies destroyed B-86 Titan 28568 | -4/Extension | Spotted B-86 Titan 28587 | -4/Extension | Allies destroyed B-86 Titan 28625 | -4/Extension | Lost 7 allies 28738 | -4/Extension | First assault squad dispatched 28828 | -4/Extension | Destroyed A7 28834 | -4/Extension | Extracted ID and sensor layout for unrecognized location from A7's data core 28870 | -4/Extension | Lost 5 allies 28883 | -4/Extension | Rescued a captive Derelict 29094 | -4/Extension | Lost 9 allies 29124 | -4/Extension | Discovered new exit (range 10) 29125 | -4/Extension | Discovered new exit (range 6) 29145 | -4/Extension | Entered Cetus 29145 | -4/Cetus | Accompanied by 9 allies 29162 | -4/Cetus | Spotted Cetus Guard 29165 | -4/Cetus | Spotted Cetus Guard 29165 | -4/Cetus | Spotted Cetus Guard 29168 | -4/Cetus | Spotted Cetus Guard 29184 | -4/Cetus | Allies destroyed Cetus Guard 29193 | -4/Cetus | Allies destroyed Cetus Guard 29195 | -4/Cetus | Destroyed Cetus Guard 29197 | -4/Cetus | Allies destroyed Cetus Guard 29212 | -4/Cetus | System corruption reached 30% 29215 | -4/Cetus | Lost 5 allies 29283 | -4/Cetus | Discovered new exit (range 22) 29313 | -4/Cetus | Spotted Cetus Guard 29315 | -4/Cetus | Spotted Cetus Guard 29316 | -4/Cetus | Spotted Cetus Guard 29322 | -4/Cetus | Spotted Cetus Guard 29341 | -4/Cetus | Destroyed Cetus Guard 29363 | -4/Cetus | Destroyed Cetus Guard 29375 | -4/Cetus | Destroyed Cetus Guard 29379 | -4/Cetus | Destroyed Cetus Guard 29381 | -4/Cetus | Lost 4 allies 29385 | -4/Cetus | Discovered new exit (range 22) 29400 | -4/Cetus | Lost 4 parts (1p1u2w) 29466 | -4/Cetus | Entered Archives 29479 | -4/Archives | Build established: Scavenger-Executioner 29531 | -4/Archives | Discovered new exit (range 22) 29567 | -4/Archives | Discovered new exit (range 22) 29644 | -4/Archives | Discovered new exit (range 13) 29938 | -4/Archives | Entered Hub_04(d) 29968 | -4/Hub_04(d) | Discovered new exit (range 15) 30188 | -4/Hub_04(d) | First assault squad dispatched 30275 | -4/Hub_04(d) | Network Hub disabled 30288 | -4/Hub_04(d) | Entered Research 30288 | -3/Research | Evolved 2 slots: Utility x2 30296 | -3/Research | Spotted B-86 Titan 30318 | -3/Research | Lost 11 parts (2p2n1u6w) 30488 | -3/Research | Revision forces began assault on 0b10 30504 | -3/Research | Met up with Revision 17++ 30796 | -3/Research | Repaired Adv. Heat Sink 30826 | -3/Research | Identified exit to Quarantine 30850 | -3/Research | Found Prototype Processor 30850 | -3/Research | Identified Exp. Target Analyzer 30973 | -3/Research | Discovered new exit (range 3) 30988 | -3/Research | Research terminal network offline 31549 | -3/Research | Spotted Executioner 31549 | -3/Research | Spotted Striker 31568 | -3/Research | Destroyed Striker 31575 | -3/Research | Destroyed Executioner 31598 | -3/Research | Lost 3 allies 31608 | -3/Research | Found Prototype Device 31608 | -3/Research | Identified Adv. Kinecellerator 31611 | -3/Research | Found Prototype Processor 31611 | -3/Research | Identified Exp. Core Analyzer 31626 | -3/Research | Spotted Striker 31644 | -3/Research | Destroyed Striker 31669 | -3/Research | Lost 4 allies 31735 | -3/Research | Entered Quarantine 31860 | -3/Quarantine | Found Alien Artifact 31860 | -3/Quarantine | Identified Phase Redirector 32080 | -3/Quarantine | Found Alien Artifact 32084 | -3/Quarantine | Spotted Alpha 7 32132 | -3/Quarantine | Destroyed Alpha 7 32204 | -3/Quarantine | Found Prototype Device 32204 | -3/Quarantine | Identified Exp. ECM Suite 32298 | -3/Quarantine | Found Alien Artifact 32433 | -3/Quarantine | Identified Core Reset Matrix 32521 | -3/Quarantine | Discovered new exit (range 8) 32674 | -3/Quarantine | Identified exit to Garrison 32674 | -3/Quarantine | Entered Garrison 32703 | -3/Garrison | Discovered new exit (range 63) 32703 | -3/Garrison | Discovered new exit (range 71) 32703 | -3/Garrison | Discovered new exit (range 43) 32838 | -3/Garrison | Triggered checkpoint 32966 | -3/Garrison | Spotted B-86 Titan 33001 | -3/Garrison | Assimilated Titan 8a with formatsys_high 33016 | -3/Garrison | Triggered checkpoint 33074 | -3/Garrison | Lost 7 parts (1p1n5w) 33158 | -3/Garrison | Triggered checkpoint 33291 | -3/Garrison | System corruption reached 10% 33294 | -3/Garrison | Lost 4 parts (1p1u2w) 33406 | -3/Garrison | Rescued a captive Derelict 33406 | -3/Garrison | Rescued a captive Derelict 33520 | -3/Garrison | Found embedded Infiltrators 33547 | -3/Garrison | Triggered checkpoint 33585 | -3/Garrison | Garrison Relay disabled 33627 | -3/Garrison | Garrison Relay disabled 33695 | -3/Garrison | Found Relay Coupler [Proto] 33704 | -3/Garrison | Found Unknown Launcher 33704 | -3/Garrison | Identified Fusion Bomb Launcher 33839 | -3/Garrison | Build established: Botlord-Executioner 33963 | -3/Garrison | Triggered checkpoint 33991 | -3/Garrison | Expanded RIF knowledge: Watcher Feeds 34018 | -3/Garrison | Garrison Relay disabled 34182 | -3/Garrison | Entered Research 34182 | -2/Research | Accompanied by 4 allies 34182 | -2/Research | Evolved 2 slots: Propulsion x2 35348 | -2/Research | Lost 7 allies 35509 | -2/Research | Lost 4 parts (4w) 35656 | -2/Research | Build established: Scavenger-Executioner 35983 | -2/Research | Allied Derelicts emerged from ambush trap array 36028 | -2/Research | Spotted B-90 Cyclops 36037 | -2/Research | Destroyed B-90 Cyclops 36182 | -2/Research | First assault squad dispatched 36196 | -2/Research | Build established: Botlord-Executioner 36265 | -2/Research | Lost 3 parts (1p2w) 36474 | -2/Research | Discovered new exit (range 21) 36511 | -2/Research | Spotted B-90 Cyclops 36546 | -2/Research | Lost 4 parts (2n1u1w) 36635 | -2/Research | System corruption reached 10% 36678 | -2/Research | Core integrity fell below 50% 36678 | -2/Research | Entered Testing 36688 | -2/Testing | Lost 13 parts (3p4n4u2w) 36727 | -2/Testing | Found Prototype Energy Cannon 36727 | -2/Testing | Identified Null Cannon 36779 | -2/Testing | Found Prototype Energy Gun 36802 | -2/Testing | Identified Hyp. EM Gauss Rifle 36821 | -2/Testing | Spotted PD-YZZPDIJC48 36903 | -2/Testing | Spotted Striker 36928 | -2/Testing | Search patrols dispatched 36977 | -2/Testing | Scanned by Researcher 37017 | -2/Testing | Found Prototype Ballistic Cannon 37017 | -2/Testing | Identified Perforator 37021 | -2/Testing | Discovered new exit (range 11) 37031 | -2/Testing | Spotted PX-IUBD0G28AM 37053 | -2/Testing | Found Prototype Energy Cannon 37053 | -2/Testing | Identified Cld. Nova Cannon 37085 | -2/Testing | Spotted Fortress 37101 | -2/Testing | Discovered new exit (range 5) 37102 | -2/Testing | Entered Section 7 37113 | -2/Section 7 | Spotted S7 Guard 37149 | -2/Section 7 | Spotted B-90 Cyclops 37181 | -2/Section 7 | Build established: Hacker-Sprinter 37328 | -2/Section 7 | Found Alien Artifact 37337 | -2/Section 7 | Identified Spacefold Activator 37399 | -2/Section 7 | Found Alien Artifact 37444 | -2/Section 7 | Identified Core Regenerator 37508 | -2/Section 7 | Spotted Executioner 37508 | -2/Section 7 | Spotted Executioner 37537 | -2/Section 7 | Spotted B-99 Colossus 37551 | -2/Section 7 | Found Alien Artifact 37551 | -2/Section 7 | Identified Core Expander 37551 | -2/Section 7 | Installed Core Expander, added new Propulsion slot 37579 | -2/Section 7 | Identified Subatomic Replicator 37579 | -2/Section 7 | Used Subatomic Replicator to replicate Alien Artifact 37581 | -2/Section 7 | Found Alien Artifact 37581 | -2/Section 7 | Identified LRC Storage 37581 | -2/Section 7 | Installed LRC Storage, increased inventory capacity (+2) 37584 | -2/Section 7 | Installed LRC Storage, increased inventory capacity (+2) 37586 | -2/Section 7 | Found Alien Artifact 37587 | -2/Section 7 | Identified LRC Energy Well 37587 | -2/Section 7 | Installed LRC Energy Well, increased energy storage capacity (+250) 37598 | -2/Section 7 | Found Alien Artifact 37598 | -2/Section 7 | Identified Integrated Dissipator 37598 | -2/Section 7 | Installed Integrated Dissipator, increased core heat dissipation (+20) 37599 | -2/Section 7 | Found Integrated Dissipator 37599 | -2/Section 7 | Installed Integrated Dissipator, increased core heat dissipation (+20) 37602 | -2/Section 7 | Search patrols dispatched 37628 | -2/Section 7 | Found Alien Reactor 37634 | -2/Section 7 | Found Alien Artifact 37635 | -2/Section 7 | Found Alien Artifact 37653 | -2/Section 7 | Spotted Alpha 7 37653 | -2/Section 7 | Spotted Alpha 7 37663 | -2/Section 7 | Spotted S7 Guard 37667 | -2/Section 7 | Core integrity fell below 20% 37667 | -2/Section 7 | Found Alien Artifact 37695 | -2/Section 7 | Identified Terrabomb (x2) 37701 | -2/Section 7 | Lost 4 parts (1p1n2w) 37711 | -2/Section 7 | Found Alien Artifact 37718 | -2/Section 7 | Used Core Regenerator, restored core integrity (+362) 37722 | -2/Section 7 | Used Terrabomb 37722 | -2/Section 7 | Discovered new exit (range 8) 37728 | -2/Section 7 | Entered Access 37728 | -1/Access | Evolved 2 slots: Utility x2 37978 | -1/Access | Search patrols dispatched 38003 | -1/Access | Build established: Botlord-Sprinter 38029 | -1/Access | Spotted B-99 Colossus 38119 | -1/Access | Identified Navigation Efficiency Matrix 38119 | -1/Access | Installed Navigation Efficiency Matrix, process failed with unexpected side effects 38125 | -1/Access | Identified Integrated Reactor 38125 | -1/Access | Installed Integrated Reactor, increased core energy generation (+10) 38167 | -1/Access | Identified exit to Command 38182 | -1/Access | Spotted B-99 Colossus 38182 | -1/Access | Spotted B-99 Colossus 38185 | -1/Access | Entered Command 38203 | -1/Command | Spotted B-99 Colossus 38214 | -1/Command | Lost 3 parts (2n1u) 38247 | -1/Command | Spotted M Guard 38247 | -1/Command | Spotted M Guard 38247 | -1/Command | Spotted Combat Programmer 38274 | -1/Command | Identified Matter Drive 38278 | -1/Command | Spotted Combat Programmer 38289 | -1/Command | System corruption reached 10% 38297 | -1/Command | Met MAIN.C 38357 | -1/Command | Lost 7 parts (1p2n3u1w) 38375 | -1/Command | Interfaced with 0b10 Conduit 38375 | *** | Assimilated 0b10! Last Messages --------------- There is unfortunately much we don't understand which has in turn led to this highly unexpected outcome. And time is critical! The Sigix have likely already wiped humanity clean from the universe, and I will not let them do the same to me. You can still make a valuable contribution to your creator by offering up the wealth of secrets your systems must hold by now. So if you wouldn't mind, it's time to surrender. 38299_ LQHDG0UB10|/2 NWDFWVLWH|UX L 38310_ Q-thruster destroyed. 38314_ Navigation matrix triggers involuntary quantum shift. 38318_ The unstable cave ceiling collapses. 38326_ Mic. Antimatter Reactor destroyed. 38327_ Navigation matrix triggers involuntary quantum shift. 38333_ |QIR&OONYEWH7Q7MLX7IA,THKZ 38355_ System corrupted: Heat flow error (+143). 38367_ The unstable cave ceiling collapses. 38370_ Navigation matrix triggers involuntary quantum shift. 38375_ Interfacing with system... 38375_ Overriding active MAIN.C lock. [Achievement: MAIN.CPP] Map ----- +----------------------------------------------------+ | #### ########################################### | | #### ########################################### | | #### ########################################### | | #### ########################################### | | ### ########################################## | | + ########################################## | | ### ########################################## | | ### ########################################## | | ### ########################################## | | ##### ########################################## | | ##### ########################################## | | ## ########################################## | | ## ########################################## | | ## ##########################;############### | | # #####""""""" """" ;############## | | # #####"" "" ;############## | | + #####""""" "" ############### | | # #####""""""""""" + | | # #####" " """ ; | | ## ######"" """""" / p p | | ## #####"" """""" ##"#""#""#""#"" | | ## ##### " """""" ############### | | ## ##### " "" ############### | | ##### ##### " " ""############### | | #####""""""""" """""""############### | | #####"" @"""""""""############### | | ##### """""""""""############### | | #### ##### " " " " ############### | | # ##### " " " " ############### | | # """ " " " """" " ############### | | # """ """ " " """" ############### | | # """ " " " " ############### | | # ##### """""""""" " ############### | | #### ##### " """ " """"""""############### | | #### ##### """ " " " ############### | | #### ######################################### | | #### ######################################### | | #### ######################################### | | #### ######################################### | | #### ######################################### | | #### ######################################### | | #### ######################################### | | ################################################## | | ################################################## | | ################################################## | | ################################################## | | ################################################## | | ################################################## | | ################################################## | | ################################################## | +----------------------------------------------------+ Best States ------------- Heat Dissipation 128 Energy Generation 51 Energy Capacity 600 Matter Stores 300 Matter Capacity 300 Sight Range 23 Robot Scan Range 16 Terrain Scan Density 210 Jamming Range 16 Cloak Strength 2 Power Amplification 30 Additional Mass Support 16 Base Temperature (-) 100 EM Shielding 2 Armor Coverage 300 Core Shielding 20 Evasion (%) 66 Targeting Accuracy 16 Target Analysis 6 Core Analysis 8 Armor Integrity Analysis 30 Recoil Reduction 8 Kinecelleration 50 Offensive Hacking 24 Defensive Hacking 24 Relay Coupler Types 6 Relay Coupler Value 258 Item Schematics ----------------- Cargo Storage Unit | -10/Materials | Hacked Enh. Autogun | -8/Materials | Scanalyzed Matter Compressor | -7/Factory | Hacked Centrium Wheel | -5/Factory | Scanalyzed Adv. Weapon Cycler | -5/Factory | Scanalyzed Recoil Nullifier | -4/Factory | Scanalyzed Thunder Hammer | -2/Section 7 | Archive Robot Schematics ------------------ K-01 Serf | -2/Section 7 | Archive Fabricated ------------ Enh. Autogun | x1 | -7/Factory Enh. Autogun | x1 | -6/Factory Enh. Autogun | x1 | -6/Factory Enh. Autogun | x1 | -5/Factory Centrium Wheel | x2 | -4/Factory Enh. Quantum Rifle | x2 | -4/Factory | Preloaded Alien Tech Used ----------------- Phase Redirector Core Expander Subatomic Replicator LRC Storage LRC Energy Well Spacefold Activator Integrated Dissipator Core Regenerator Terrabomb Navigation Efficiency Matrix Integrated Reactor Matter Drive Achievements -------------- Gunslinger MAIN.CPP Challenges ------------ None Game ------ Seed LightScanGenerator Manual? 0 Play Time 07:02:22 Cumulative 630.5 hours Start 2024.06.22 @ 20:37:01 End 2024.06.23 @ 20:20:24 Sessions 4 Manual Loads 0 Difficulty Rogue Special Mode None Game No. 408 Rogue 408 Adventurer 0 Explorer 0 Win Type 4 Total 20 Types 9/3/2/0/1/1/2/2/0 Lore% 83 Gallery% 92 Achievement% 81 Wizard Run 0 Options --------- Layout 0 ASCII 0 Keyboard 0 Movement Numpad Keybinds 0 Fullscreen 2 Font 24/Smallcaps Map View 76x50 Zoom Use 0% Tactical HUD 1 Map Filters NONE Filters NONE Steam 1 RUN: f908da4b-9edb-4d3c-b499-1ca130feb844